Workbook

Sheet ＴＯＰ
B4: 入力・移動 各シートの | E4: に必要事項を入力します。
B5: 印刷 各シートはＡ４サイズの用紙に出力されます。
B7: 入力・移動 | D7: 印刷 | F7: 説明
F9: 会社名、中小企業者等の別、適用事業年度などを入力します
F11: 従業員の名前などの情報を入力します
F13: 基準雇用者給与等支給額、比較雇用者給与等支給額、適用年度の雇用者給与等支給額を入力します
F15: 入力した基礎数字を基に、別表６（２１）を作成します。「当期の所得に対する法人税の額」を追加入力する必要があります
F18: 提供：小林敬幸税理士事務所
F19: Ver. 1.0
B20: ★当事務所の税理士の著書
C22: 帳簿初心者な方向けに、パソコン会計で徹底的に簡単に青色申告を行うためのTipsを詰め込んだ、自信の一作です！
C25: ★参考 このファイルの保護パスワードは、こちらの本の背面の２つめのバーコードの数字（1920で始まる１３ケタの数字（半角））になっています。マクロを有効にすると、保護を解除しなくともすべての機能は使えますが、保護を解除して改造等挑戦される方は是非本書もお求めください。
C28: 個人事業を会社にした場合の税金や社会保険料の変化が、誰でも簡単にシミュレーションできるソフトが付録についた、法人成りのノウハウ満載のマニュアル本です！

Sheet 基本情報
B7: 会社名 | C7: 株式会社今野デザイン
B9: 中小企業に該当するか | C9: 非該当 | D9: =IF(C9="該当",20,10) -> 10 | L9: 中小法人 | M9: 大法人
D10: 期首日 | E10: 2015-04-01 | F10: 2016-04-01 | G10: 2017-04-01 | H10: 2018-04-01 | I10: 月数 | J10: 前事業年度月数 | L10: =IF(D11<E10,0.02,0.03) -> 0.03 | M10: =IF(D11<E10,0.02,IF(D11<F10,0.03,IF(D11<G10,0.04,0.05))) -> 0.03
B11: 計算事業年度の期末日 | C11: 2016-09-30 | D11: =EOMONTH(C11,-12)+1 -> 2015-10-01 | E11: =IF(C9="該当",L10,M10) -> 0.03 | G11: =EOMONTH(D11,-13)+1 -> 2014-10-01 | H11: =EOMONTH(G11,11) -> 2015-09-30 | I11: =DATEDIF(D11,C11,"M")+1 -> 12 | J11: =DATEDIF(G11,H11,"M")+1 -> 12
G12: 前年度期首日 | H12: 前年度期末日
B13: 法人の設立日 | C13: 平成25年３月31日以前 | D13: =IF(C13="平成25年３月31日以前",1,0) -> 1
B15: 基準年度 | C15: =IF(D13=1,G15,"-") -> 2012-10-01 | D15: ="2013/"&MONTH(D11)&"/"&DAY(D11) -> 2013/10/1 | E15: =VALUE(D15) -> 2013-10-01 | F15: 2013-04-01 | G15: =IF(E15>=F15,EOMONTH(E15,-13)+1,E15) -> 2012-10-01 | I15: 月数
C16: =IF(D13=1,EOMONTH(C15,11),"-") -> 2013-09-30 | I16: =IF(D13=1,DATEDIF(C15,C16,"M")+1,"-") -> 12
F17: 期末日
B18: 基準年度がない 場合の法人設立日 | D18: =YEAR(C18)&"/"&MONTH(C11)&"/"&DAY(C11) -> 1900/9/30 | E18: =VALUE(D18) -> 1900-09-30 | F18: =IF(C18<E18,E18,EOMONTH(E18,12)) -> 1900-09-30 | G18: =DATEDIF(C18,F18,"M")+1 -> 9
B19: 設立年度の 雇用者給与等支給額 | D19: =ROUNDDOWN(C19*0.7,0) -> 0
B22: 経過年度の摘要の有無 | C22: 有
B23: 経過年度

Sheet 従業員情報
B5: No. | C5: 従業員名 | D5: 役員・使用人兼務役員 特殊関係者 | E5: 国内雇用者 | F5: 雇用保険 一般被保険者 | G5: 一般被保険者 となった月 | H5: 一般被保険者 でなくなった月 | I5: 一般被保険者で なくなった理由 | J5: なった月 判定 | K5: 一般被保険者 となった月 | L5: 一般被保険者 でなくなった月 | M5: 継続雇用者 | N5: なくなった月 判定
B6: 1 | C6: 今野 友夫 | D6: 該当 | J6: =IF(ISERROR(VLOOKUP(G6,計算基礎シート!I$5:J$28,2,FALSE)),2,VLOOKUP(G6,計算基礎シート!I$5:J$28,2,FALSE)) -> 2 | K6: =IF(ISERROR(VLOOKUP(G6,計算基礎シート!$C$5:$D$28,2,FALSE)),"",VLOOKUP(G6,計算基礎シート!$C$5:$D$28,2,FALSE)) ->  | L6: =IF(ISERROR(VLOOKUP(H6,計算基礎シート!$F$3:$G$28,2,FALSE)),"",VLOOKUP(H6,計算基礎シート!$F$3:$G$28,2,FALSE)) ->  | M6: =IF(AND(J6=1,N6=1),"該当","") ->  | N6: =IF(ISERROR(VLOOKUP(L6,計算基礎シート!G$5:H$28,2,FALSE)),2,VLOOKUP(L6,計算基礎シート!G$5:H$28,2,FALSE)) -> 2
B7: 2 | C7: 今野 朝子 | D7: 該当 | J7: =IF(ISERROR(VLOOKUP(G7,計算基礎シート!I$5:J$28,2,FALSE)),2,VLOOKUP(G7,計算基礎シート!I$5:J$28,2,FALSE)) -> 2 | K7: =IF(ISERROR(VLOOKUP(G7,計算基礎シート!$C$5:$D$28,2,FALSE)),"",VLOOKUP(G7,計算基礎シート!$C$5:$D$28,2,FALSE)) ->  | L7: =IF(ISERROR(VLOOKUP(H7,計算基礎シート!$F$3:$G$28,2,FALSE)),"",VLOOKUP(H7,計算基礎シート!$F$3:$G$28,2,FALSE)) ->  | M7: =IF(AND(J7=1,N7=1),"該当","") ->  | N7: =IF(ISERROR(VLOOKUP(L7,計算基礎シート!G$5:H$28,2,FALSE)),2,VLOOKUP(L7,計算基礎シート!G$5:H$28,2,FALSE)) -> 2
B8: 3 | C8: 今野 祥子 | D8: 該当 | J8: =IF(ISERROR(VLOOKUP(G8,計算基礎シート!I$5:J$28,2,FALSE)),2,VLOOKUP(G8,計算基礎シート!I$5:J$28,2,FALSE)) -> 2 | K8: =IF(ISERROR(VLOOKUP(G8,計算基礎シート!$C$5:$D$28,2,FALSE)),"",VLOOKUP(G8,計算基礎シート!$C$5:$D$28,2,FALSE)) ->  | L8: =IF(ISERROR(VLOOKUP(H8,計算基礎シート!$F$3:$G$28,2,FALSE)),"",VLOOKUP(H8,計算基礎シート!$F$3:$G$28,2,FALSE)) ->  | N8: =IF(ISERROR(VLOOKUP(L8,計算基礎シート!G$5:H$28,2,FALSE)),2,VLOOKUP(L8,計算基礎シート!G$5:H$28,2,FALSE)) -> 2
B9: 4 | C9: 川西 めぐみ | D9: 非該当 | E9: 該当 | F9: 該当 | G9: 2014年10月以前 | H9: 在職中 | J9: =IF(ISERROR(VLOOKUP(G9,計算基礎シート!I$5:J$28,2,FALSE)),2,VLOOKUP(G9,計算基礎シート!I$5:J$28,2,FALSE)) -> 1 | K9: =IF(ISERROR(VLOOKUP(G9,計算基礎シート!$C$5:$D$28,2,FALSE)),"",VLOOKUP(G9,計算基礎シート!$C$5:$D$28,2,FALSE)) -> 2014-10-01 | L9: =IF(ISERROR(VLOOKUP(H9,計算基礎シート!$F$3:$G$28,2,FALSE)),"",VLOOKUP(H9,計算基礎シート!$F$3:$G$28,2,FALSE)) -> 2016-09-30 | M9: 該当 | N9: =IF(ISERROR(VLOOKUP(L9,計算基礎シート!G$5:H$28,2,FALSE)),2,VLOOKUP(L9,計算基礎シート!G$5:H$28,2,FALSE)) -> 1
B10: 5 | C10: 鳥居 雅之 | D10: 非該当 | E10: 該当 | F10: 非該当 | J10: =IF(ISERROR(VLOOKUP(G10,計算基礎シート!I$5:J$28,2,FALSE)),2,VLOOKUP(G10,計算基礎シート!I$5:J$28,2,FALSE)) -> 2 | K10: =IF(ISERROR(VLOOKUP(G10,計算基礎シート!$C$5:$D$28,2,FALSE)),"",VLOOKUP(G10,計算基礎シート!$C$5:$D$28,2,FALSE)) ->  | L10: =IF(ISERROR(VLOOKUP(H10,計算基礎シート!$F$3:$G$28,2,FALSE)),"",VLOOKUP(H10,計算基礎シート!$F$3:$G$28,2,FALSE)) ->  | N10: =IF(ISERROR(VLOOKUP(L10,計算基礎シート!G$5:H$28,2,FALSE)),2,VLOOKUP(L10,計算基礎シート!G$5:H$28,2,FALSE)) -> 2
B11: 6 | C11: 絹延橋 みつ子 | D11: 非該当 | E11: 該当 | F11: 該当 | G11: 2014年10月以前 | H11: 2016年7月 | I11: 退職 | J11: =IF(ISERROR(VLOOKUP(G11,計算基礎シート!I$5:J$28,2,FALSE)),2,VLOOKUP(G11,計算基礎シート!I$5:J$28,2,FALSE)) -> 1 | K11: =IF(ISERROR(VLOOKUP(G11,計算基礎シート!$C$5:$D$28,2,FALSE)),"",VLOOKUP(G11,計算基礎シート!$C$5:$D$28,2,FALSE)) -> 2014-10-01 | L11: =IF(ISERROR(VLOOKUP(H11,計算基礎シート!$F$3:$G$28,2,FALSE)),"",VLOOKUP(H11,計算基礎シート!$F$3:$G$28,2,FALSE)) -> 2016-07-31 | M11: 該当 | N11: =IF(ISERROR(VLOOKUP(L11,計算基礎シート!G$5:H$28,2,FALSE)),2,VLOOKUP(L11,計算基礎シート!G$5:H$28,2,FALSE)) -> 1
B12: 7 | C12: 笹部 菜穂美 | D12: 非該当 | E12: 該当 | F12: 該当 | G12: 2016年6月 | H12: 在職中 | J12: =IF(ISERROR(VLOOKUP(G12,計算基礎シート!I$5:J$28,2,FALSE)),2,VLOOKUP(G12,計算基礎シート!I$5:J$28,2,FALSE)) -> 2 | K12: =IF(ISERROR(VLOOKUP(G12,計算基礎シート!$C$5:$D$28,2,FALSE)),"",VLOOKUP(G12,計算基礎シート!$C$5:$D$28,2,FALSE)) -> 2016-06-30 | L12: =IF(ISERROR(VLOOKUP(H12,計算基礎シート!$F$3:$G$28,2,FALSE)),"",VLOOKUP(H12,計算基礎シート!$F$3:$G$28,2,FALSE)) -> 2016-09-30 | N12: =IF(ISERROR(VLOOKUP(L12,計算基礎シート!G$5:H$28,2,FALSE)),2,VLOOKUP(L12,計算基礎シート!G$5:H$28,2,FALSE)) -> 1
B13: 8 | C13: 山下 典子 | D13: 非該当 | E13: 該当 | F13: 該当 | G13: 2014年11月 | H13: 在職中 | J13: =IF(ISERROR(VLOOKUP(G13,計算基礎シート!I$5:J$28,2,FALSE)),2,VLOOKUP(G13,計算基礎シート!I$5:J$28,2,FALSE)) -> 1 | K13: =IF(ISERROR(VLOOKUP(G13,計算基礎シート!$C$5:$D$28,2,FALSE)),"",VLOOKUP(G13,計算基礎シート!$C$5:$D$28,2,FALSE)) -> 2014-11-30 | L13: =IF(ISERROR(VLOOKUP(H13,計算基礎シート!$F$3:$G$28,2,FALSE)),"",VLOOKUP(H13,計算基礎シート!$F$3:$G$28,2,FALSE)) -> 2016-09-30 | M13: 該当 | N13: =IF(ISERROR(VLOOKUP(L13,計算基礎シート!G$5:H$28,2,FALSE)),2,VLOOKUP(L13,計算基礎シート!G$5:H$28,2,FALSE)) -> 1
B14: 9 | C14: 畦野 保則 | D14: 非該当 | E14: 該当 | F14: 該当 | G14: 2014年10月以前 | H14: 2015年6月 | I14: 継続雇用制度に移行 | J14: =IF(ISERROR(VLOOKUP(G14,計算基礎シート!I$5:J$28,2,FALSE)),2,VLOOKUP(G14,計算基礎シート!I$5:J$28,2,FALSE)) -> 1 | K14: =IF(ISERROR(VLOOKUP(G14,計算基礎シート!$C$5:$D$28,2,FALSE)),"",VLOOKUP(G14,計算基礎シート!$C$5:$D$28,2,FALSE)) -> 2014-10-01 | L14: =IF(ISERROR(VLOOKUP(H14,計算基礎シート!$F$3:$G$28,2,FALSE)),"",VLOOKUP(H14,計算基礎シート!$F$3:$G$28,2,FALSE)) -> 2015-06-30 | N14: =IF(ISERROR(VLOOKUP(L14,計算基礎シート!G$5:H$28,2,FALSE)),2,VLOOKUP(L14,計算基礎シート!G$5:H$28,2,FALSE)) -> 2
B15: 10 | C15: 滝山 隆一 | D15: 非該当 | E15: 該当 | F15: 該当 | G15: 2014年10月以前 | H15: 2014年6月 | I15: 継続雇用制度に移行 | J15: =IF(ISERROR(VLOOKUP(G15,計算基礎シート!I$5:J$28,2,FALSE)),2,VLOOKUP(G15,計算基礎シート!I$5:J$28,2,FALSE)) -> 1 | K15: =IF(ISERROR(VLOOKUP(G15,計算基礎シート!$C$5:$D$28,2,FALSE)),"",VLOOKUP(G15,計算基礎シート!$C$5:$D$28,2,FALSE)) -> 2014-10-01 | L15: =IF(ISERROR(VLOOKUP(H15,計算基礎シート!$F$3:$G$28,2,FALSE)),"",VLOOKUP(H15,計算基礎シート!$F$3:$G$28,2,FALSE)) ->  | N15: =IF(ISERROR(VLOOKUP(L15,計算基礎シート!G$5:H$28,2,FALSE)),2,VLOOKUP(L15,計算基礎シート!G$5:H$28,2,FALSE)) -> 2
B16: 11 | D16: 該当 | J16: =IF(ISERROR(VLOOKUP(G16,計算基礎シート!I$5:J$28,2,FALSE)),2,VLOOKUP(G16,計算基礎シート!I$5:J$28,2,FALSE)) -> 2 | K16: =IF(ISERROR(VLOOKUP(G16,計算基礎シート!$C$5:$D$28,2,FALSE)),"",VLOOKUP(G16,計算基礎シート!$C$5:$D$28,2,FALSE)) ->  | L16: =IF(ISERROR(VLOOKUP(H16,計算基礎シート!$F$3:$G$28,2,FALSE)),"",VLOOKUP(H16,計算基礎シート!$F$3:$G$28,2,FALSE)) ->  | N16: =IF(ISERROR(VLOOKUP(L16,計算基礎シート!G$5:H$28,2,FALSE)),2,VLOOKUP(L16,計算基礎シート!G$5:H$28,2,FALSE)) -> 2
B17: 12 | D17: 該当 | J17: =IF(ISERROR(VLOOKUP(G17,計算基礎シート!I$5:J$28,2,FALSE)),2,VLOOKUP(G17,計算基礎シート!I$5:J$28,2,FALSE)) -> 2 | K17: =IF(ISERROR(VLOOKUP(G17,計算基礎シート!$C$5:$D$28,2,FALSE)),"",VLOOKUP(G17,計算基礎シート!$C$5:$D$28,2,FALSE)) ->  | L17: =IF(ISERROR(VLOOKUP(H17,計算基礎シート!$F$3:$G$28,2,FALSE)),"",VLOOKUP(H17,計算基礎シート!$F$3:$G$28,2,FALSE)) ->  | N17: =IF(ISERROR(VLOOKUP(L17,計算基礎シート!G$5:H$28,2,FALSE)),2,VLOOKUP(L17,計算基礎シート!G$5:H$28,2,FALSE)) -> 2
B18: 13 | D18: 該当 | J18: =IF(ISERROR(VLOOKUP(G18,計算基礎シート!I$5:J$28,2,FALSE)),2,VLOOKUP(G18,計算基礎シート!I$5:J$28,2,FALSE)) -> 2 | K18: =IF(ISERROR(VLOOKUP(G18,計算基礎シート!$C$5:$D$28,2,FALSE)),"",VLOOKUP(G18,計算基礎シート!$C$5:$D$28,2,FALSE)) ->  | L18: =IF(ISERROR(VLOOKUP(H18,計算基礎シート!$F$3:$G$28,2,FALSE)),"",VLOOKUP(H18,計算基礎シート!$F$3:$G$28,2,FALSE)) ->  | N18: =IF(ISERROR(VLOOKUP(L18,計算基礎シート!G$5:H$28,2,FALSE)),2,VLOOKUP(L18,計算基礎シート!G$5:H$28,2,FALSE)) -> 2
B19: 14 | D19: 該当 | J19: =IF(ISERROR(VLOOKUP(G19,計算基礎シート!I$5:J$28,2,FALSE)),2,VLOOKUP(G19,計算基礎シート!I$5:J$28,2,FALSE)) -> 2 | K19: =IF(ISERROR(VLOOKUP(G19,計算基礎シート!$C$5:$D$28,2,FALSE)),"",VLOOKUP(G19,計算基礎シート!$C$5:$D$28,2,FALSE)) ->  | L19: =IF(ISERROR(VLOOKUP(H19,計算基礎シート!$F$3:$G$28,2,FALSE)),"",VLOOKUP(H19,計算基礎シート!$F$3:$G$28,2,FALSE)) ->  | N19: =IF(ISERROR(VLOOKUP(L19,計算基礎シート!G$5:H$28,2,FALSE)),2,VLOOKUP(L19,計算基礎シート!G$5:H$28,2,FALSE)) -> 2
B20: 15 | D20: 該当 | J20: =IF(ISERROR(VLOOKUP(G20,計算基礎シート!I$5:J$28,2,FALSE)),2,VLOOKUP(G20,計算基礎シート!I$5:J$28,2,FALSE)) -> 2 | K20: =IF(ISERROR(VLOOKUP(G20,計算基礎シート!$C$5:$D$28,2,FALSE)),"",VLOOKUP(G20,計算基礎シート!$C$5:$D$28,2,FALSE)) ->  | L20: =IF(ISERROR(VLOOKUP(H20,計算基礎シート!$F$3:$G$28,2,FALSE)),"",VLOOKUP(H20,計算基礎シート!$F$3:$G$28,2,FALSE)) ->  | N20: =IF(ISERROR(VLOOKUP(L20,計算基礎シート!G$5:H$28,2,FALSE)),2,VLOOKUP(L20,計算基礎シート!G$5:H$28,2,FALSE)) -> 2
B21: 16 | D21: 該当 | J21: =IF(ISERROR(VLOOKUP(G21,計算基礎シート!I$5:J$28,2,FALSE)),2,VLOOKUP(G21,計算基礎シート!I$5:J$28,2,FALSE)) -> 2 | K21: =IF(ISERROR(VLOOKUP(G21,計算基礎シート!$C$5:$D$28,2,FALSE)),"",VLOOKUP(G21,計算基礎シート!$C$5:$D$28,2,FALSE)) ->  | L21: =IF(ISERROR(VLOOKUP(H21,計算基礎シート!$F$3:$G$28,2,FALSE)),"",VLOOKUP(H21,計算基礎シート!$F$3:$G$28,2,FALSE)) ->  | N21: =IF(ISERROR(VLOOKUP(L21,計算基礎シート!G$5:H$28,2,FALSE)),2,VLOOKUP(L21,計算基礎シート!G$5:H$28,2,FALSE)) -> 2
B22: 17 | D22: 該当 | J22: =IF(ISERROR(VLOOKUP(G22,計算基礎シート!I$5:J$28,2,FALSE)),2,VLOOKUP(G22,計算基礎シート!I$5:J$28,2,FALSE)) -> 2 | K22: =IF(ISERROR(VLOOKUP(G22,計算基礎シート!$C$5:$D$28,2,FALSE)),"",VLOOKUP(G22,計算基礎シート!$C$5:$D$28,2,FALSE)) ->  | L22: =IF(ISERROR(VLOOKUP(H22,計算基礎シート!$F$3:$G$28,2,FALSE)),"",VLOOKUP(H22,計算基礎シート!$F$3:$G$28,2,FALSE)) ->  | N22: =IF(ISERROR(VLOOKUP(L22,計算基礎シート!G$5:H$28,2,FALSE)),2,VLOOKUP(L22,計算基礎シート!G$5:H$28,2,FALSE)) -> 2
B23: 18 | D23: 該当 | J23: =IF(ISERROR(VLOOKUP(G23,計算基礎シート!I$5:J$28,2,FALSE)),2,VLOOKUP(G23,計算基礎シート!I$5:J$28,2,FALSE)) -> 2 | K23: =IF(ISERROR(VLOOKUP(G23,計算基礎シート!$C$5:$D$28,2,FALSE)),"",VLOOKUP(G23,計算基礎シート!$C$5:$D$28,2,FALSE)) ->  | L23: =IF(ISERROR(VLOOKUP(H23,計算基礎シート!$F$3:$G$28,2,FALSE)),"",VLOOKUP(H23,計算基礎シート!$F$3:$G$28,2,FALSE)) ->  | N23: =IF(ISERROR(VLOOKUP(L23,計算基礎シート!G$5:H$28,2,FALSE)),2,VLOOKUP(L23,計算基礎シート!G$5:H$28,2,FALSE)) -> 2
B24: 19 | D24: 該当 | J24: =IF(ISERROR(VLOOKUP(G24,計算基礎シート!I$5:J$28,2,FALSE)),2,VLOOKUP(G24,計算基礎シート!I$5:J$28,2,FALSE)) -> 2 | K24: =IF(ISERROR(VLOOKUP(G24,計算基礎シート!$C$5:$D$28,2,FALSE)),"",VLOOKUP(G24,計算基礎シート!$C$5:$D$28,2,FALSE)) ->  | L24: =IF(ISERROR(VLOOKUP(H24,計算基礎シート!$F$3:$G$28,2,FALSE)),"",VLOOKUP(H24,計算基礎シート!$F$3:$G$28,2,FALSE)) ->  | N24: =IF(ISERROR(VLOOKUP(L24,計算基礎シート!G$5:H$28,2,FALSE)),2,VLOOKUP(L24,計算基礎シート!G$5:H$28,2,FALSE)) -> 2
B25: 20 | D25: 該当 | J25: =IF(ISERROR(VLOOKUP(G25,計算基礎シート!I$5:J$28,2,FALSE)),2,VLOOKUP(G25,計算基礎シート!I$5:J$28,2,FALSE)) -> 2 | K25: =IF(ISERROR(VLOOKUP(G25,計算基礎シート!$C$5:$D$28,2,FALSE)),"",VLOOKUP(G25,計算基礎シート!$C$5:$D$28,2,FALSE)) ->  | L25: =IF(ISERROR(VLOOKUP(H25,計算基礎シート!$F$3:$G$28,2,FALSE)),"",VLOOKUP(H25,計算基礎シート!$F$3:$G$28,2,FALSE)) ->  | N25: =IF(ISERROR(VLOOKUP(L25,計算基礎シート!G$5:H$28,2,FALSE)),2,VLOOKUP(L25,計算基礎シート!G$5:H$28,2,FALSE)) -> 2
B26: 21 | D26: 該当 | J26: =IF(ISERROR(VLOOKUP(G26,計算基礎シート!I$5:J$28,2,FALSE)),2,VLOOKUP(G26,計算基礎シート!I$5:J$28,2,FALSE)) -> 2 | K26: =IF(ISERROR(VLOOKUP(G26,計算基礎シート!$C$5:$D$28,2,FALSE)),"",VLOOKUP(G26,計算基礎シート!$C$5:$D$28,2,FALSE)) ->  | L26: =IF(ISERROR(VLOOKUP(H26,計算基礎シート!$F$3:$G$28,2,FALSE)),"",VLOOKUP(H26,計算基礎シート!$F$3:$G$28,2,FALSE)) ->  | N26: =IF(ISERROR(VLOOKUP(L26,計算基礎シート!G$5:H$28,2,FALSE)),2,VLOOKUP(L26,計算基礎シート!G$5:H$28,2,FALSE)) -> 2
B27: 22 | D27: 該当 | J27: =IF(ISERROR(VLOOKUP(G27,計算基礎シート!I$5:J$28,2,FALSE)),2,VLOOKUP(G27,計算基礎シート!I$5:J$28,2,FALSE)) -> 2 | K27: =IF(ISERROR(VLOOKUP(G27,計算基礎シート!$C$5:$D$28,2,FALSE)),"",VLOOKUP(G27,計算基礎シート!$C$5:$D$28,2,FALSE)) ->  | L27: =IF(ISERROR(VLOOKUP(H27,計算基礎シート!$F$3:$G$28,2,FALSE)),"",VLOOKUP(H27,計算基礎シート!$F$3:$G$28,2,FALSE)) ->  | N27: =IF(ISERROR(VLOOKUP(L27,計算基礎シート!G$5:H$28,2,FALSE)),2,VLOOKUP(L27,計算基礎シート!G$5:H$28,2,FALSE)) -> 2
B28: 23 | D28: 該当 | J28: =IF(ISERROR(VLOOKUP(G28,計算基礎シート!I$5:J$28,2,FALSE)),2,VLOOKUP(G28,計算基礎シート!I$5:J$28,2,FALSE)) -> 2 | K28: =IF(ISERROR(VLOOKUP(G28,計算基礎シート!$C$5:$D$28,2,FALSE)),"",VLOOKUP(G28,計算基礎シート!$C$5:$D$28,2,FALSE)) ->  | L28: =IF(ISERROR(VLOOKUP(H28,計算基礎シート!$F$3:$G$28,2,FALSE)),"",VLOOKUP(H28,計算基礎シート!$F$3:$G$28,2,FALSE)) ->  | N28: =IF(ISERROR(VLOOKUP(L28,計算基礎シート!G$5:H$28,2,FALSE)),2,VLOOKUP(L28,計算基礎シート!G$5:H$28,2,FALSE)) -> 2
B29: 24 | D29: 該当 | J29: =IF(ISERROR(VLOOKUP(G29,計算基礎シート!I$5:J$28,2,FALSE)),2,VLOOKUP(G29,計算基礎シート!I$5:J$28,2,FALSE)) -> 2 | K29: =IF(ISERROR(VLOOKUP(G29,計算基礎シート!$C$5:$D$28,2,FALSE)),"",VLOOKUP(G29,計算基礎シート!$C$5:$D$28,2,FALSE)) ->  | L29: =IF(ISERROR(VLOOKUP(H29,計算基礎シート!$F$3:$G$28,2,FALSE)),"",VLOOKUP(H29,計算基礎シート!$F$3:$G$28,2,FALSE)) ->  | N29: =IF(ISERROR(VLOOKUP(L29,計算基礎シート!G$5:H$28,2,FALSE)),2,VLOOKUP(L29,計算基礎シート!G$5:H$28,2,FALSE)) -> 2
B30: 25 | D30: 該当 | J30: =IF(ISERROR(VLOOKUP(G30,計算基礎シート!I$5:J$28,2,FALSE)),2,VLOOKUP(G30,計算基礎シート!I$5:J$28,2,FALSE)) -> 2 | K30: =IF(ISERROR(VLOOKUP(G30,計算基礎シート!$C$5:$D$28,2,FALSE)),"",VLOOKUP(G30,計算基礎シート!$C$5:$D$28,2,FALSE)) ->  | L30: =IF(ISERROR(VLOOKUP(H30,計算基礎シート!$F$3:$G$28,2,FALSE)),"",VLOOKUP(H30,計算基礎シート!$F$3:$G$28,2,FALSE)) ->  | N30: =IF(ISERROR(VLOOKUP(L30,計算基礎シート!G$5:H$28,2,FALSE)),2,VLOOKUP(L30,計算基礎シート!G$5:H$28,2,FALSE)) -> 2
B31: 26 | D31: 該当 | J31: =IF(ISERROR(VLOOKUP(G31,計算基礎シート!I$5:J$28,2,FALSE)),2,VLOOKUP(G31,計算基礎シート!I$5:J$28,2,FALSE)) -> 2 | K31: =IF(ISERROR(VLOOKUP(G31,計算基礎シート!$C$5:$D$28,2,FALSE)),"",VLOOKUP(G31,計算基礎シート!$C$5:$D$28,2,FALSE)) ->  | L31: =IF(ISERROR(VLOOKUP(H31,計算基礎シート!$F$3:$G$28,2,FALSE)),"",VLOOKUP(H31,計算基礎シート!$F$3:$G$28,2,FALSE)) ->  | N31: =IF(ISERROR(VLOOKUP(L31,計算基礎シート!G$5:H$28,2,FALSE)),2,VLOOKUP(L31,計算基礎シート!G$5:H$28,2,FALSE)) -> 2
B32: 27 | D32: 該当 | J32: =IF(ISERROR(VLOOKUP(G32,計算基礎シート!I$5:J$28,2,FALSE)),2,VLOOKUP(G32,計算基礎シート!I$5:J$28,2,FALSE)) -> 2 | K32: =IF(ISERROR(VLOOKUP(G32,計算基礎シート!$C$5:$D$28,2,FALSE)),"",VLOOKUP(G32,計算基礎シート!$C$5:$D$28,2,FALSE)) ->  | L32: =IF(ISERROR(VLOOKUP(H32,計算基礎シート!$F$3:$G$28,2,FALSE)),"",VLOOKUP(H32,計算基礎シート!$F$3:$G$28,2,FALSE)) ->  | N32: =IF(ISERROR(VLOOKUP(L32,計算基礎シート!G$5:H$28,2,FALSE)),2,VLOOKUP(L32,計算基礎シート!G$5:H$28,2,FALSE)) -> 2
B33: 28 | D33: 該当 | J33: =IF(ISERROR(VLOOKUP(G33,計算基礎シート!I$5:J$28,2,FALSE)),2,VLOOKUP(G33,計算基礎シート!I$5:J$28,2,FALSE)) -> 2 | K33: =IF(ISERROR(VLOOKUP(G33,計算基礎シート!$C$5:$D$28,2,FALSE)),"",VLOOKUP(G33,計算基礎シート!$C$5:$D$28,2,FALSE)) ->  | L33: =IF(ISERROR(VLOOKUP(H33,計算基礎シート!$F$3:$G$28,2,FALSE)),"",VLOOKUP(H33,計算基礎シート!$F$3:$G$28,2,FALSE)) ->  | N33: =IF(ISERROR(VLOOKUP(L33,計算基礎シート!G$5:H$28,2,FALSE)),2,VLOOKUP(L33,計算基礎シート!G$5:H$28,2,FALSE)) -> 2
B34: 29 | D34: 該当 | J34: =IF(ISERROR(VLOOKUP(G34,計算基礎シート!I$5:J$28,2,FALSE)),2,VLOOKUP(G34,計算基礎シート!I$5:J$28,2,FALSE)) -> 2 | K34: =IF(ISERROR(VLOOKUP(G34,計算基礎シート!$C$5:$D$28,2,FALSE)),"",VLOOKUP(G34,計算基礎シート!$C$5:$D$28,2,FALSE)) ->  | L34: =IF(ISERROR(VLOOKUP(H34,計算基礎シート!$F$3:$G$28,2,FALSE)),"",VLOOKUP(H34,計算基礎シート!$F$3:$G$28,2,FALSE)) ->  | N34: =IF(ISERROR(VLOOKUP(L34,計算基礎シート!G$5:H$28,2,FALSE)),2,VLOOKUP(L34,計算基礎シート!G$5:H$28,2,FALSE)) -> 2
B35: 30 | D35: 該当 | J35: =IF(ISERROR(VLOOKUP(G35,計算基礎シート!I$5:J$28,2,FALSE)),2,VLOOKUP(G35,計算基礎シート!I$5:J$28,2,FALSE)) -> 2 | K35: =IF(ISERROR(VLOOKUP(G35,計算基礎シート!$C$5:$D$28,2,FALSE)),"",VLOOKUP(G35,計算基礎シート!$C$5:$D$28,2,FALSE)) ->  | L35: =IF(ISERROR(VLOOKUP(H35,計算基礎シート!$F$3:$G$28,2,FALSE)),"",VLOOKUP(H35,計算基礎シート!$F$3:$G$28,2,FALSE)) ->  | N35: =IF(ISERROR(VLOOKUP(L35,計算基礎シート!G$5:H$28,2,FALSE)),2,VLOOKUP(L35,計算基礎シート!G$5:H$28,2,FALSE)) -> 2
A37: 該当
A38: 非該当

Sheet 給与入力
B4: １、基準雇用者給与等支給額の入力
B5: Ｎｏ． | C5: 1 | D5: 2 | E5: 3 | F5: 4 | G5: 5 | H5: 6 | I5: 7 | J5: 8 | K5: 9 | L5: 10 | M5: 11 | N5: 12 | O5: 13 | P5: 14 | Q5: 15 | R5: 16 | S5: 17 | T5: 18 | U5: 19 | V5: 20 | W5: 21 | X5: 22 | Y5: 23 | Z5: 24 | AA5: 25 | AB5: 26 | AC5: 27 | AD5: 28 | AE5: 29 | AF5: 30 | AG5: 合計
B6: 名前 | C6: =VLOOKUP(C5,従業員情報!$B$6:$C$35,2,FALSE) -> 今野 友夫 | D6: =VLOOKUP(D5,従業員情報!$B$6:$C$35,2,FALSE) -> 今野 朝子 | E6: =VLOOKUP(E5,従業員情報!$B$6:$C$35,2,FALSE) -> 今野 祥子 | F6: =VLOOKUP(F5,従業員情報!$B$6:$C$35,2,FALSE) -> 川西 めぐみ | G6: =VLOOKUP(G5,従業員情報!$B$6:$C$35,2,FALSE) -> 鳥居 雅之 | H6: =VLOOKUP(H5,従業員情報!$B$6:$C$35,2,FALSE) -> 絹延橋 みつ子 | I6: =VLOOKUP(I5,従業員情報!$B$6:$C$35,2,FALSE) -> 笹部 菜穂美 | J6: =VLOOKUP(J5,従業員情報!$B$6:$C$35,2,FALSE) -> 山下 典子 | K6: =VLOOKUP(K5,従業員情報!$B$6:$C$35,2,FALSE) -> 畦野 保則 | L6: =VLOOKUP(L5,従業員情報!$B$6:$C$35,2,FALSE) -> 滝山 隆一 | M6: =VLOOKUP(M5,従業員情報!$B$6:$C$35,2,FALSE) -> 0 | N6: =VLOOKUP(N5,従業員情報!$B$6:$C$35,2,FALSE) -> 0 | O6: =VLOOKUP(O5,従業員情報!$B$6:$C$35,2,FALSE) -> 0 | P6: =VLOOKUP(P5,従業員情報!$B$6:$C$35,2,FALSE) -> 0 | Q6: =VLOOKUP(Q5,従業員情報!$B$6:$C$35,2,FALSE) -> 0 | R6: =VLOOKUP(R5,従業員情報!$B$6:$C$35,2,FALSE) -> 0 | S6: =VLOOKUP(S5,従業員情報!$B$6:$C$35,2,FALSE) -> 0 | T6: =VLOOKUP(T5,従業員情報!$B$6:$C$35,2,FALSE) -> 0 | U6: =VLOOKUP(U5,従業員情報!$B$6:$C$35,2,FALSE) -> 0 | V6: =VLOOKUP(V5,従業員情報!$B$6:$C$35,2,FALSE) -> 0 | W6: =VLOOKUP(W5,従業員情報!$B$6:$C$35,2,FALSE) -> 0 | X6: =VLOOKUP(X5,従業員情報!$B$6:$C$35,2,FALSE) -> 0 | Y6: =VLOOKUP(Y5,従業員情報!$B$6:$C$35,2,FALSE) -> 0 | Z6: =VLOOKUP(Z5,従業員情報!$B$6:$C$35,2,FALSE) -> 0 | AA6: =VLOOKUP(AA5,従業員情報!$B$6:$C$35,2,FALSE) -> 0 | AB6: =VLOOKUP(AB5,従業員情報!$B$6:$C$35,2,FALSE) -> 0 | AC6: =VLOOKUP(AC5,従業員情報!$B$6:$C$35,2,FALSE) -> 0 | AD6: =VLOOKUP(AD5,従業員情報!$B$6:$C$35,2,FALSE) -> 0 | AE6: =VLOOKUP(AE5,従業員情報!$B$6:$C$35,2,FALSE) -> 0 | AF6: =VLOOKUP(AF5,従業員情報!$B$6:$C$35,2,FALSE) -> 0 | AG6: =SUM(C7:AF7) -> 0
B7: 国内雇用者 | C7: =IF(ISERROR(VLOOKUP(C5,従業員情報!$B$6:$H$35,4,FALSE)),"",VLOOKUP(C5,従業員情報!$B$6:$H$35,4,FALSE)) -> 0 | D7: =IF(ISERROR(VLOOKUP(D5,従業員情報!$B$6:$H$35,4,FALSE)),"",VLOOKUP(D5,従業員情報!$B$6:$H$35,4,FALSE)) -> 0 | E7: =IF(ISERROR(VLOOKUP(E5,従業員情報!$B$6:$H$35,4,FALSE)),"",VLOOKUP(E5,従業員情報!$B$6:$H$35,4,FALSE)) -> 0 | F7: =IF(ISERROR(VLOOKUP(F5,従業員情報!$B$6:$H$35,4,FALSE)),"",VLOOKUP(F5,従業員情報!$B$6:$H$35,4,FALSE)) -> 該当 | G7: =IF(ISERROR(VLOOKUP(G5,従業員情報!$B$6:$H$35,4,FALSE)),"",VLOOKUP(G5,従業員情報!$B$6:$H$35,4,FALSE)) -> 該当 | H7: =IF(ISERROR(VLOOKUP(H5,従業員情報!$B$6:$H$35,4,FALSE)),"",VLOOKUP(H5,従業員情報!$B$6:$H$35,4,FALSE)) -> 該当 | I7: =IF(ISERROR(VLOOKUP(I5,従業員情報!$B$6:$H$35,4,FALSE)),"",VLOOKUP(I5,従業員情報!$B$6:$H$35,4,FALSE)) -> 該当 | J7: =IF(ISERROR(VLOOKUP(J5,従業員情報!$B$6:$H$35,4,FALSE)),"",VLOOKUP(J5,従業員情報!$B$6:$H$35,4,FALSE)) -> 該当 | K7: =IF(ISERROR(VLOOKUP(K5,従業員情報!$B$6:$H$35,4,FALSE)),"",VLOOKUP(K5,従業員情報!$B$6:$H$35,4,FALSE)) -> 該当 | L7: =IF(ISERROR(VLOOKUP(L5,従業員情報!$B$6:$H$35,4,FALSE)),"",VLOOKUP(L5,従業員情報!$B$6:$H$35,4,FALSE)) -> 該当 | M7: =IF(ISERROR(VLOOKUP(M5,従業員情報!$B$6:$H$35,4,FALSE)),"",VLOOKUP(M5,従業員情報!$B$6:$H$35,4,FALSE)) -> 0 | N7: =IF(ISERROR(VLOOKUP(N5,従業員情報!$B$6:$H$35,4,FALSE)),"",VLOOKUP(N5,従業員情報!$B$6:$H$35,4,FALSE)) -> 0 | O7: =IF(ISERROR(VLOOKUP(O5,従業員情報!$B$6:$H$35,4,FALSE)),"",VLOOKUP(O5,従業員情報!$B$6:$H$35,4,FALSE)) -> 0 | P7: =IF(ISERROR(VLOOKUP(P5,従業員情報!$B$6:$H$35,4,FALSE)),"",VLOOKUP(P5,従業員情報!$B$6:$H$35,4,FALSE)) -> 0 | Q7: =IF(ISERROR(VLOOKUP(Q5,従業員情報!$B$6:$H$35,4,FALSE)),"",VLOOKUP(Q5,従業員情報!$B$6:$H$35,4,FALSE)) -> 0 | R7: =IF(ISERROR(VLOOKUP(R5,従業員情報!$B$6:$H$35,4,FALSE)),"",VLOOKUP(R5,従業員情報!$B$6:$H$35,4,FALSE)) -> 0 | S7: =IF(ISERROR(VLOOKUP(S5,従業員情報!$B$6:$H$35,4,FALSE)),"",VLOOKUP(S5,従業員情報!$B$6:$H$35,4,FALSE)) -> 0 | T7: =IF(ISERROR(VLOOKUP(T5,従業員情報!$B$6:$H$35,4,FALSE)),"",VLOOKUP(T5,従業員情報!$B$6:$H$35,4,FALSE)) -> 0 | U7: =IF(ISERROR(VLOOKUP(U5,従業員情報!$B$6:$H$35,4,FALSE)),"",VLOOKUP(U5,従業員情報!$B$6:$H$35,4,FALSE)) -> 0 | V7: =IF(ISERROR(VLOOKUP(V5,従業員情報!$B$6:$H$35,4,FALSE)),"",VLOOKUP(V5,従業員情報!$B$6:$H$35,4,FALSE)) -> 0 | W7: =IF(ISERROR(VLOOKUP(W5,従業員情報!$B$6:$H$35,4,FALSE)),"",VLOOKUP(W5,従業員情報!$B$6:$H$35,4,FALSE)) -> 0 | X7: =IF(ISERROR(VLOOKUP(X5,従業員情報!$B$6:$H$35,4,FALSE)),"",VLOOKUP(X5,従業員情報!$B$6:$H$35,4,FALSE)) -> 0 | Y7: =IF(ISERROR(VLOOKUP(Y5,従業員情報!$B$6:$H$35,4,FALSE)),"",VLOOKUP(Y5,従業員情報!$B$6:$H$35,4,FALSE)) -> 0 | Z7: =IF(ISERROR(VLOOKUP(Z5,従業員情報!$B$6:$H$35,4,FALSE)),"",VLOOKUP(Z5,従業員情報!$B$6:$H$35,4,FALSE)) -> 0 | AA7: =IF(ISERROR(VLOOKUP(AA5,従業員情報!$B$6:$H$35,4,FALSE)),"",VLOOKUP(AA5,従業員情報!$B$6:$H$35,4,FALSE)) -> 0 | AB7: =IF(ISERROR(VLOOKUP(AB5,従業員情報!$B$6:$H$35,4,FALSE)),"",VLOOKUP(AB5,従業員情報!$B$6:$H$35,4,FALSE)) -> 0 | AC7: =IF(ISERROR(VLOOKUP(AC5,従業員情報!$B$6:$H$35,4,FALSE)),"",VLOOKUP(AC5,従業員情報!$B$6:$H$35,4,FALSE)) -> 0 | AD7: =IF(ISERROR(VLOOKUP(AD5,従業員情報!$B$6:$H$35,4,FALSE)),"",VLOOKUP(AD5,従業員情報!$B$6:$H$35,4,FALSE)) -> 0 | AE7: =IF(ISERROR(VLOOKUP(AE5,従業員情報!$B$6:$H$35,4,FALSE)),"",VLOOKUP(AE5,従業員情報!$B$6:$H$35,4,FALSE)) -> 0 | AF7: =IF(ISERROR(VLOOKUP(AF5,従業員情報!$B$6:$H$35,4,FALSE)),"",VLOOKUP(AF5,従業員情報!$B$6:$H$35,4,FALSE)) -> 0
B8: =基本情報!C15 -> 2012-10-01 | F8: 240000 | G8: 30000 | H8: 320500 | K8: 185000 | L8: 105000 | AG8: =SUM(C8:AF8) -> 880500
B9: =EOMONTH(B8,1) -> 2012-11-30 | F9: 232000 | G9: 50000 | H9: 310500 | K9: 192000 | L9: 123000 | AG9: =SUM(C9:AF9) -> 907500
B10: =EOMONTH(B9,1) -> 2012-12-31 | F10: 235000 | G10: 40000 | H10: 310200 | K10: 178000 | L10: 115000 | AG10: 878200
B11: 2013-01-31 | F11: 242000 | G11: 30000 | H11: 320300 | K11: 192000 | L11: 178000 | AG11: 962300
B12: 2013-02-28 | F12: 238000 | G12: 20000 | H12: 330000 | K12: 168000 | L12: 123500 | AG12: 879500
B13: 2013-03-31 | F13: 229000 | G13: 50000 | H13: 380000 | K13: 173000 | L13: 156000 | AG13: 988000
B14: 2013-04-30 | F14: 228000 | G14: 60000 | H14: 320000 | K14: 169000 | L14: 165000 | AG14: 942000
B15: 2013-05-31 | F15: 231000 | G15: 80000 | H15: 310500 | K15: 185000 | L15: 148000 | AG15: 954500
B16: 2013-06-30 | F16: 240500 | G16: 70000 | H16: 300500 | K16: 193000 | L16: 132500 | AG16: 936500
B17: 2013-07-31 | F17: 229000 | G17: 50000 | H17: 320000 | K17: 178000 | L17: 180000 | AG17: 957000
B18: 2013-08-31 | F18: 232000 | G18: 60000 | H18: 320550 | K18: 172000 | L18: 123000 | AG18: 907550
B19: 2013-09-30 | F19: 239000 | G19: 80000 | H19: 320000 | K19: 179000 | L19: 178000 | AG19: 996000
B20: 賞与など | F20: 250000 | G20: 20000 | H20: 250000 | K20: 150000 | L20: 158000 | AG20: 828000
B21: 合計 | C21: =SUM(C8:C20) -> 0 | D21: =SUM(D8:D20) -> 0 | E21: 0 | F21: 3065500 | G21: 640000 | H21: 4113050 | I21: 0 | J21: 0 | K21: 2314000 | L21: 1885000 | M21: 0 | N21: 0 | O21: 0 | P21: 0 | Q21: 0 | R21: 0 | S21: 0 | T21: 0 | U21: 0 | V21: 0 | W21: 0 | X21: 0 | Y21: 0 | Z21: 0 | AA21: 0 | AB21: 0 | AC21: 0 | AD21: 0 | AE21: 0 | AF21: 0 | AG21: 12017550
B24: ２、比較雇用者給与等支給額の入力
B25: Ｎｏ． | C25: 1 | D25: 2 | E25: 3 | F25: 4 | G25: 5 | H25: 6 | I25: 7 | J25: 8 | K25: 9 | L25: 10 | M25: 11 | N25: 12 | O25: 13 | P25: 14 | Q25: 15 | R25: 16 | S25: 17 | T25: 18 | U25: 19 | V25: 20 | W25: 21 | X25: 22 | Y25: 23 | Z25: 24 | AA25: 25 | AB25: 26 | AC25: 27 | AD25: 28 | AE25: 29 | AF25: 30 | AG25: 合計 | AH25: 月別継続 雇用者数
B26: 名前 | C26: =VLOOKUP(C25,従業員情報!$B$6:$C$35,2,FALSE) -> 今野 友夫 | D26: =VLOOKUP(D25,従業員情報!$B$6:$C$35,2,FALSE) -> 今野 朝子 | E26: =VLOOKUP(E25,従業員情報!$B$6:$C$35,2,FALSE) -> 今野 祥子 | F26: =VLOOKUP(F25,従業員情報!$B$6:$C$35,2,FALSE) -> 川西 めぐみ | G26: =VLOOKUP(G25,従業員情報!$B$6:$C$35,2,FALSE) -> 鳥居 雅之 | H26: =VLOOKUP(H25,従業員情報!$B$6:$C$35,2,FALSE) -> 絹延橋 みつ子 | I26: =VLOOKUP(I25,従業員情報!$B$6:$C$35,2,FALSE) -> 笹部 菜穂美 | J26: =VLOOKUP(J25,従業員情報!$B$6:$C$35,2,FALSE) -> 山下 典子 | K26: =VLOOKUP(K25,従業員情報!$B$6:$C$35,2,FALSE) -> 畦野 保則 | L26: =VLOOKUP(L25,従業員情報!$B$6:$C$35,2,FALSE) -> 滝山 隆一 | M26: =VLOOKUP(M25,従業員情報!$B$6:$C$35,2,FALSE) -> 0 | N26: =VLOOKUP(N25,従業員情報!$B$6:$C$35,2,FALSE) -> 0 | O26: =VLOOKUP(O25,従業員情報!$B$6:$C$35,2,FALSE) -> 0 | P26: =VLOOKUP(P25,従業員情報!$B$6:$C$35,2,FALSE) -> 0 | Q26: =VLOOKUP(Q25,従業員情報!$B$6:$C$35,2,FALSE) -> 0 | R26: =VLOOKUP(R25,従業員情報!$B$6:$C$35,2,FALSE) -> 0 | S26: =VLOOKUP(S25,従業員情報!$B$6:$C$35,2,FALSE) -> 0 | T26: =VLOOKUP(T25,従業員情報!$B$6:$C$35,2,FALSE) -> 0 | U26: =VLOOKUP(U25,従業員情報!$B$6:$C$35,2,FALSE) -> 0 | V26: =VLOOKUP(V25,従業員情報!$B$6:$C$35,2,FALSE) -> 0 | W26: =VLOOKUP(W25,従業員情報!$B$6:$C$35,2,FALSE) -> 0 | X26: =VLOOKUP(X25,従業員情報!$B$6:$C$35,2,FALSE) -> 0 | Y26: =VLOOKUP(Y25,従業員情報!$B$6:$C$35,2,FALSE) -> 0 | Z26: =VLOOKUP(Z25,従業員情報!$B$6:$C$35,2,FALSE) -> 0 | AA26: =VLOOKUP(AA25,従業員情報!$B$6:$C$35,2,FALSE) -> 0 | AB26: =VLOOKUP(AB25,従業員情報!$B$6:$C$35,2,FALSE) -> 0 | AC26: =VLOOKUP(AC25,従業員情報!$B$6:$C$35,2,FALSE) -> 0 | AD26: =VLOOKUP(AD25,従業員情報!$B$6:$C$35,2,FALSE) -> 0 | AE26: =VLOOKUP(AE25,従業員情報!$B$6:$C$35,2,FALSE) -> 0 | AF26: =VLOOKUP(AF25,従業員情報!$B$6:$C$35,2,FALSE) -> 0 | AG26: =SUM(C27:AF27) -> 0
B27: 国内雇用者 | C27: =IF(ISERROR(VLOOKUP(C25,従業員情報!$B$6:$H$35,4,FALSE)),"",VLOOKUP(C25,従業員情報!$B$6:$H$35,4,FALSE)) -> 0 | D27: =IF(ISERROR(VLOOKUP(D25,従業員情報!$B$6:$H$35,4,FALSE)),"",VLOOKUP(D25,従業員情報!$B$6:$H$35,4,FALSE)) -> 0 | E27: =IF(ISERROR(VLOOKUP(E25,従業員情報!$B$6:$H$35,4,FALSE)),"",VLOOKUP(E25,従業員情報!$B$6:$H$35,4,FALSE)) -> 0 | F27: =IF(ISERROR(VLOOKUP(F25,従業員情報!$B$6:$H$35,4,FALSE)),"",VLOOKUP(F25,従業員情報!$B$6:$H$35,4,FALSE)) -> 該当 | G27: =IF(ISERROR(VLOOKUP(G25,従業員情報!$B$6:$H$35,4,FALSE)),"",VLOOKUP(G25,従業員情報!$B$6:$H$35,4,FALSE)) -> 該当 | H27: =IF(ISERROR(VLOOKUP(H25,従業員情報!$B$6:$H$35,4,FALSE)),"",VLOOKUP(H25,従業員情報!$B$6:$H$35,4,FALSE)) -> 該当 | I27: =IF(ISERROR(VLOOKUP(I25,従業員情報!$B$6:$H$35,4,FALSE)),"",VLOOKUP(I25,従業員情報!$B$6:$H$35,4,FALSE)) -> 該当 | J27: =IF(ISERROR(VLOOKUP(J25,従業員情報!$B$6:$H$35,4,FALSE)),"",VLOOKUP(J25,従業員情報!$B$6:$H$35,4,FALSE)) -> 該当 | K27: =IF(ISERROR(VLOOKUP(K25,従業員情報!$B$6:$H$35,4,FALSE)),"",VLOOKUP(K25,従業員情報!$B$6:$H$35,4,FALSE)) -> 該当 | L27: =IF(ISERROR(VLOOKUP(L25,従業員情報!$B$6:$H$35,4,FALSE)),"",VLOOKUP(L25,従業員情報!$B$6:$H$35,4,FALSE)) -> 該当 | M27: =IF(ISERROR(VLOOKUP(M25,従業員情報!$B$6:$H$35,4,FALSE)),"",VLOOKUP(M25,従業員情報!$B$6:$H$35,4,FALSE)) -> 0 | N27: =IF(ISERROR(VLOOKUP(N25,従業員情報!$B$6:$H$35,4,FALSE)),"",VLOOKUP(N25,従業員情報!$B$6:$H$35,4,FALSE)) -> 0 | O27: =IF(ISERROR(VLOOKUP(O25,従業員情報!$B$6:$H$35,4,FALSE)),"",VLOOKUP(O25,従業員情報!$B$6:$H$35,4,FALSE)) -> 0 | P27: =IF(ISERROR(VLOOKUP(P25,従業員情報!$B$6:$H$35,4,FALSE)),"",VLOOKUP(P25,従業員情報!$B$6:$H$35,4,FALSE)) -> 0 | Q27: =IF(ISERROR(VLOOKUP(Q25,従業員情報!$B$6:$H$35,4,FALSE)),"",VLOOKUP(Q25,従業員情報!$B$6:$H$35,4,FALSE)) -> 0 | R27: =IF(ISERROR(VLOOKUP(R25,従業員情報!$B$6:$H$35,4,FALSE)),"",VLOOKUP(R25,従業員情報!$B$6:$H$35,4,FALSE)) -> 0 | S27: =IF(ISERROR(VLOOKUP(S25,従業員情報!$B$6:$H$35,4,FALSE)),"",VLOOKUP(S25,従業員情報!$B$6:$H$35,4,FALSE)) -> 0 | T27: =IF(ISERROR(VLOOKUP(T25,従業員情報!$B$6:$H$35,4,FALSE)),"",VLOOKUP(T25,従業員情報!$B$6:$H$35,4,FALSE)) -> 0 | U27: =IF(ISERROR(VLOOKUP(U25,従業員情報!$B$6:$H$35,4,FALSE)),"",VLOOKUP(U25,従業員情報!$B$6:$H$35,4,FALSE)) -> 0 | V27: =IF(ISERROR(VLOOKUP(V25,従業員情報!$B$6:$H$35,4,FALSE)),"",VLOOKUP(V25,従業員情報!$B$6:$H$35,4,FALSE)) -> 0 | W27: =IF(ISERROR(VLOOKUP(W25,従業員情報!$B$6:$H$35,4,FALSE)),"",VLOOKUP(W25,従業員情報!$B$6:$H$35,4,FALSE)) -> 0 | X27: =IF(ISERROR(VLOOKUP(X25,従業員情報!$B$6:$H$35,4,FALSE)),"",VLOOKUP(X25,従業員情報!$B$6:$H$35,4,FALSE)) -> 0 | Y27: =IF(ISERROR(VLOOKUP(Y25,従業員情報!$B$6:$H$35,4,FALSE)),"",VLOOKUP(Y25,従業員情報!$B$6:$H$35,4,FALSE)) -> 0 | Z27: =IF(ISERROR(VLOOKUP(Z25,従業員情報!$B$6:$H$35,4,FALSE)),"",VLOOKUP(Z25,従業員情報!$B$6:$H$35,4,FALSE)) -> 0 | AA27: =IF(ISERROR(VLOOKUP(AA25,従業員情報!$B$6:$H$35,4,FALSE)),"",VLOOKUP(AA25,従業員情報!$B$6:$H$35,4,FALSE)) -> 0 | AB27: =IF(ISERROR(VLOOKUP(AB25,従業員情報!$B$6:$H$35,4,FALSE)),"",VLOOKUP(AB25,従業員情報!$B$6:$H$35,4,FALSE)) -> 0 | AC27: =IF(ISERROR(VLOOKUP(AC25,従業員情報!$B$6:$H$35,4,FALSE)),"",VLOOKUP(AC25,従業員情報!$B$6:$H$35,4,FALSE)) -> 0 | AD27: =IF(ISERROR(VLOOKUP(AD25,従業員情報!$B$6:$H$35,4,FALSE)),"",VLOOKUP(AD25,従業員情報!$B$6:$H$35,4,FALSE)) -> 0 | AE27: =IF(ISERROR(VLOOKUP(AE25,従業員情報!$B$6:$H$35,4,FALSE)),"",VLOOKUP(AE25,従業員情報!$B$6:$H$35,4,FALSE)) -> 0 | AF27: =IF(ISERROR(VLOOKUP(AF25,従業員情報!$B$6:$H$35,4,FALSE)),"",VLOOKUP(AF25,従業員情報!$B$6:$H$35,4,FALSE)) -> 0
B28: 継続雇用者 | C28: =IF(ISERROR(VLOOKUP(C25,従業員情報!$B$6:$M$35,12,FALSE)),"",VLOOKUP(C25,従業員情報!$B$6:$M$35,12,FALSE)) ->  | D28: =IF(ISERROR(VLOOKUP(D25,従業員情報!$B$6:$M$35,12,FALSE)),"",VLOOKUP(D25,従業員情報!$B$6:$M$35,12,FALSE)) ->  | E28: =IF(ISERROR(VLOOKUP(E25,従業員情報!$B$6:$M$35,12,FALSE)),"",VLOOKUP(E25,従業員情報!$B$6:$M$35,12,FALSE)) ->  | F28: =IF(ISERROR(VLOOKUP(F25,従業員情報!$B$6:$M$35,12,FALSE)),"",VLOOKUP(F25,従業員情報!$B$6:$M$35,12,FALSE)) -> 該当 | G28: =IF(ISERROR(VLOOKUP(G25,従業員情報!$B$6:$M$35,12,FALSE)),"",VLOOKUP(G25,従業員情報!$B$6:$M$35,12,FALSE)) ->  | H28: =IF(ISERROR(VLOOKUP(H25,従業員情報!$B$6:$M$35,12,FALSE)),"",VLOOKUP(H25,従業員情報!$B$6:$M$35,12,FALSE)) -> 該当 | I28: =IF(ISERROR(VLOOKUP(I25,従業員情報!$B$6:$M$35,12,FALSE)),"",VLOOKUP(I25,従業員情報!$B$6:$M$35,12,FALSE)) ->  | J28: =IF(ISERROR(VLOOKUP(J25,従業員情報!$B$6:$M$35,12,FALSE)),"",VLOOKUP(J25,従業員情報!$B$6:$M$35,12,FALSE)) -> 該当 | K28: =IF(ISERROR(VLOOKUP(K25,従業員情報!$B$6:$M$35,12,FALSE)),"",VLOOKUP(K25,従業員情報!$B$6:$M$35,12,FALSE)) ->  | L28: =IF(ISERROR(VLOOKUP(L25,従業員情報!$B$6:$M$35,12,FALSE)),"",VLOOKUP(L25,従業員情報!$B$6:$M$35,12,FALSE)) ->  | M28: =IF(ISERROR(VLOOKUP(M25,従業員情報!$B$6:$M$35,12,FALSE)),"",VLOOKUP(M25,従業員情報!$B$6:$M$35,12,FALSE)) ->  | N28: =IF(ISERROR(VLOOKUP(N25,従業員情報!$B$6:$M$35,12,FALSE)),"",VLOOKUP(N25,従業員情報!$B$6:$M$35,12,FALSE)) ->  | O28: =IF(ISERROR(VLOOKUP(O25,従業員情報!$B$6:$M$35,12,FALSE)),"",VLOOKUP(O25,従業員情報!$B$6:$M$35,12,FALSE)) ->  | P28: =IF(ISERROR(VLOOKUP(P25,従業員情報!$B$6:$M$35,12,FALSE)),"",VLOOKUP(P25,従業員情報!$B$6:$M$35,12,FALSE)) ->  | Q28: =IF(ISERROR(VLOOKUP(Q25,従業員情報!$B$6:$M$35,12,FALSE)),"",VLOOKUP(Q25,従業員情報!$B$6:$M$35,12,FALSE)) ->  | R28: =IF(ISERROR(VLOOKUP(R25,従業員情報!$B$6:$M$35,12,FALSE)),"",VLOOKUP(R25,従業員情報!$B$6:$M$35,12,FALSE)) ->  | S28: =IF(ISERROR(VLOOKUP(S25,従業員情報!$B$6:$M$35,12,FALSE)),"",VLOOKUP(S25,従業員情報!$B$6:$M$35,12,FALSE)) ->  | T28: =IF(ISERROR(VLOOKUP(T25,従業員情報!$B$6:$M$35,12,FALSE)),"",VLOOKUP(T25,従業員情報!$B$6:$M$35,12,FALSE)) ->  | U28: =IF(ISERROR(VLOOKUP(U25,従業員情報!$B$6:$M$35,12,FALSE)),"",VLOOKUP(U25,従業員情報!$B$6:$M$35,12,FALSE)) ->  | V28: =IF(ISERROR(VLOOKUP(V25,従業員情報!$B$6:$M$35,12,FALSE)),"",VLOOKUP(V25,従業員情報!$B$6:$M$35,12,FALSE)) ->  | W28: =IF(ISERROR(VLOOKUP(W25,従業員情報!$B$6:$M$35,12,FALSE)),"",VLOOKUP(W25,従業員情報!$B$6:$M$35,12,FALSE)) ->  | X28: =IF(ISERROR(VLOOKUP(X25,従業員情報!$B$6:$M$35,12,FALSE)),"",VLOOKUP(X25,従業員情報!$B$6:$M$35,12,FALSE)) ->  | Y28: =IF(ISERROR(VLOOKUP(Y25,従業員情報!$B$6:$M$35,12,FALSE)),"",VLOOKUP(Y25,従業員情報!$B$6:$M$35,12,FALSE)) ->  | Z28: =IF(ISERROR(VLOOKUP(Z25,従業員情報!$B$6:$M$35,12,FALSE)),"",VLOOKUP(Z25,従業員情報!$B$6:$M$35,12,FALSE)) ->  | AA28: =IF(ISERROR(VLOOKUP(AA25,従業員情報!$B$6:$M$35,12,FALSE)),"",VLOOKUP(AA25,従業員情報!$B$6:$M$35,12,FALSE)) ->  | AB28: =IF(ISERROR(VLOOKUP(AB25,従業員情報!$B$6:$M$35,12,FALSE)),"",VLOOKUP(AB25,従業員情報!$B$6:$M$35,12,FALSE)) ->  | AC28: =IF(ISERROR(VLOOKUP(AC25,従業員情報!$B$6:$M$35,12,FALSE)),"",VLOOKUP(AC25,従業員情報!$B$6:$M$35,12,FALSE)) ->  | AD28: =IF(ISERROR(VLOOKUP(AD25,従業員情報!$B$6:$M$35,12,FALSE)),"",VLOOKUP(AD25,従業員情報!$B$6:$M$35,12,FALSE)) ->  | AE28: =IF(ISERROR(VLOOKUP(AE25,従業員情報!$B$6:$M$35,12,FALSE)),"",VLOOKUP(AE25,従業員情報!$B$6:$M$35,12,FALSE)) ->  | AF28: =IF(ISERROR(VLOOKUP(AF25,従業員情報!$B$6:$M$35,12,FALSE)),"",VLOOKUP(AF25,従業員情報!$B$6:$M$35,12,FALSE)) -> 
B29: 被保険者開始月 | C29: =IF(ISERROR(VLOOKUP(C25,従業員情報!$B$6:$M$35,10,FALSE)),"",VLOOKUP(C25,従業員情報!$B$6:$M$35,10,FALSE)) ->  | D29: =IF(ISERROR(VLOOKUP(D25,従業員情報!$B$6:$M$35,10,FALSE)),"",VLOOKUP(D25,従業員情報!$B$6:$M$35,10,FALSE)) ->  | E29: =IF(ISERROR(VLOOKUP(E25,従業員情報!$B$6:$M$35,10,FALSE)),"",VLOOKUP(E25,従業員情報!$B$6:$M$35,10,FALSE)) ->  | F29: =IF(ISERROR(VLOOKUP(F25,従業員情報!$B$6:$M$35,10,FALSE)),"",VLOOKUP(F25,従業員情報!$B$6:$M$35,10,FALSE)) -> 2014-10-01 | G29: =IF(ISERROR(VLOOKUP(G25,従業員情報!$B$6:$M$35,10,FALSE)),"",VLOOKUP(G25,従業員情報!$B$6:$M$35,10,FALSE)) ->  | H29: =IF(ISERROR(VLOOKUP(H25,従業員情報!$B$6:$M$35,10,FALSE)),"",VLOOKUP(H25,従業員情報!$B$6:$M$35,10,FALSE)) -> 2014-10-01 | I29: =IF(ISERROR(VLOOKUP(I25,従業員情報!$B$6:$M$35,10,FALSE)),"",VLOOKUP(I25,従業員情報!$B$6:$M$35,10,FALSE)) -> 2016-06-30 | J29: =IF(ISERROR(VLOOKUP(J25,従業員情報!$B$6:$M$35,10,FALSE)),"",VLOOKUP(J25,従業員情報!$B$6:$M$35,10,FALSE)) -> 2014-11-30 | K29: =IF(ISERROR(VLOOKUP(K25,従業員情報!$B$6:$M$35,10,FALSE)),"",VLOOKUP(K25,従業員情報!$B$6:$M$35,10,FALSE)) -> 2014-10-01 | L29: =IF(ISERROR(VLOOKUP(L25,従業員情報!$B$6:$M$35,10,FALSE)),"",VLOOKUP(L25,従業員情報!$B$6:$M$35,10,FALSE)) -> 2014-10-01 | M29: =IF(ISERROR(VLOOKUP(M25,従業員情報!$B$6:$M$35,10,FALSE)),"",VLOOKUP(M25,従業員情報!$B$6:$M$35,10,FALSE)) ->  | N29: =IF(ISERROR(VLOOKUP(N25,従業員情報!$B$6:$M$35,10,FALSE)),"",VLOOKUP(N25,従業員情報!$B$6:$M$35,10,FALSE)) ->  | O29: =IF(ISERROR(VLOOKUP(O25,従業員情報!$B$6:$M$35,10,FALSE)),"",VLOOKUP(O25,従業員情報!$B$6:$M$35,10,FALSE)) ->  | P29: =IF(ISERROR(VLOOKUP(P25,従業員情報!$B$6:$M$35,10,FALSE)),"",VLOOKUP(P25,従業員情報!$B$6:$M$35,10,FALSE)) ->  | Q29: =IF(ISERROR(VLOOKUP(Q25,従業員情報!$B$6:$M$35,10,FALSE)),"",VLOOKUP(Q25,従業員情報!$B$6:$M$35,10,FALSE)) ->  | R29: =IF(ISERROR(VLOOKUP(R25,従業員情報!$B$6:$M$35,10,FALSE)),"",VLOOKUP(R25,従業員情報!$B$6:$M$35,10,FALSE)) ->  | S29: =IF(ISERROR(VLOOKUP(S25,従業員情報!$B$6:$M$35,10,FALSE)),"",VLOOKUP(S25,従業員情報!$B$6:$M$35,10,FALSE)) ->  | T29: =IF(ISERROR(VLOOKUP(T25,従業員情報!$B$6:$M$35,10,FALSE)),"",VLOOKUP(T25,従業員情報!$B$6:$M$35,10,FALSE)) ->  | U29: =IF(ISERROR(VLOOKUP(U25,従業員情報!$B$6:$M$35,10,FALSE)),"",VLOOKUP(U25,従業員情報!$B$6:$M$35,10,FALSE)) ->  | V29: =IF(ISERROR(VLOOKUP(V25,従業員情報!$B$6:$M$35,10,FALSE)),"",VLOOKUP(V25,従業員情報!$B$6:$M$35,10,FALSE)) ->  | W29: =IF(ISERROR(VLOOKUP(W25,従業員情報!$B$6:$M$35,10,FALSE)),"",VLOOKUP(W25,従業員情報!$B$6:$M$35,10,FALSE)) ->  | X29: =IF(ISERROR(VLOOKUP(X25,従業員情報!$B$6:$M$35,10,FALSE)),"",VLOOKUP(X25,従業員情報!$B$6:$M$35,10,FALSE)) ->  | Y29: =IF(ISERROR(VLOOKUP(Y25,従業員情報!$B$6:$M$35,10,FALSE)),"",VLOOKUP(Y25,従業員情報!$B$6:$M$35,10,FALSE)) ->  | Z29: =IF(ISERROR(VLOOKUP(Z25,従業員情報!$B$6:$M$35,10,FALSE)),"",VLOOKUP(Z25,従業員情報!$B$6:$M$35,10,FALSE)) ->  | AA29: =IF(ISERROR(VLOOKUP(AA25,従業員情報!$B$6:$M$35,10,FALSE)),"",VLOOKUP(AA25,従業員情報!$B$6:$M$35,10,FALSE)) ->  | AB29: =IF(ISERROR(VLOOKUP(AB25,従業員情報!$B$6:$M$35,10,FALSE)),"",VLOOKUP(AB25,従業員情報!$B$6:$M$35,10,FALSE)) ->  | AC29: =IF(ISERROR(VLOOKUP(AC25,従業員情報!$B$6:$M$35,10,FALSE)),"",VLOOKUP(AC25,従業員情報!$B$6:$M$35,10,FALSE)) ->  | AD29: =IF(ISERROR(VLOOKUP(AD25,従業員情報!$B$6:$M$35,10,FALSE)),"",VLOOKUP(AD25,従業員情報!$B$6:$M$35,10,FALSE)) ->  | AE29: =IF(ISERROR(VLOOKUP(AE25,従業員情報!$B$6:$M$35,10,FALSE)),"",VLOOKUP(AE25,従業員情報!$B$6:$M$35,10,FALSE)) ->  | AF29: =IF(ISERROR(VLOOKUP(AF25,従業員情報!$B$6:$M$35,10,FALSE)),"",VLOOKUP(AF25,従業員情報!$B$6:$M$35,10,FALSE)) -> 
B30: 被保険者終了月 | C30: =IF(ISERROR(VLOOKUP(C25,従業員情報!$B$6:$M$35,11,FALSE)),"",VLOOKUP(C25,従業員情報!$B$6:$M$35,11,FALSE)) ->  | D30: =IF(ISERROR(VLOOKUP(D25,従業員情報!$B$6:$M$35,11,FALSE)),"",VLOOKUP(D25,従業員情報!$B$6:$M$35,11,FALSE)) ->  | E30: =IF(ISERROR(VLOOKUP(E25,従業員情報!$B$6:$M$35,11,FALSE)),"",VLOOKUP(E25,従業員情報!$B$6:$M$35,11,FALSE)) ->  | F30: =IF(ISERROR(VLOOKUP(F25,従業員情報!$B$6:$M$35,11,FALSE)),"",VLOOKUP(F25,従業員情報!$B$6:$M$35,11,FALSE)) -> 2016-09-30 | G30: =IF(ISERROR(VLOOKUP(G25,従業員情報!$B$6:$M$35,11,FALSE)),"",VLOOKUP(G25,従業員情報!$B$6:$M$35,11,FALSE)) ->  | H30: =IF(ISERROR(VLOOKUP(H25,従業員情報!$B$6:$M$35,11,FALSE)),"",VLOOKUP(H25,従業員情報!$B$6:$M$35,11,FALSE)) -> 2016-07-31 | I30: =IF(ISERROR(VLOOKUP(I25,従業員情報!$B$6:$M$35,11,FALSE)),"",VLOOKUP(I25,従業員情報!$B$6:$M$35,11,FALSE)) -> 2016-09-30 | J30: =IF(ISERROR(VLOOKUP(J25,従業員情報!$B$6:$M$35,11,FALSE)),"",VLOOKUP(J25,従業員情報!$B$6:$M$35,11,FALSE)) -> 2016-09-30 | K30: =IF(ISERROR(VLOOKUP(K25,従業員情報!$B$6:$M$35,11,FALSE)),"",VLOOKUP(K25,従業員情報!$B$6:$M$35,11,FALSE)) -> 2015-06-30 | L30: =IF(ISERROR(VLOOKUP(L25,従業員情報!$B$6:$M$35,11,FALSE)),"",VLOOKUP(L25,従業員情報!$B$6:$M$35,11,FALSE)) ->  | M30: =IF(ISERROR(VLOOKUP(M25,従業員情報!$B$6:$M$35,11,FALSE)),"",VLOOKUP(M25,従業員情報!$B$6:$M$35,11,FALSE)) ->  | N30: =IF(ISERROR(VLOOKUP(N25,従業員情報!$B$6:$M$35,11,FALSE)),"",VLOOKUP(N25,従業員情報!$B$6:$M$35,11,FALSE)) ->  | O30: =IF(ISERROR(VLOOKUP(O25,従業員情報!$B$6:$M$35,11,FALSE)),"",VLOOKUP(O25,従業員情報!$B$6:$M$35,11,FALSE)) ->  | P30: =IF(ISERROR(VLOOKUP(P25,従業員情報!$B$6:$M$35,11,FALSE)),"",VLOOKUP(P25,従業員情報!$B$6:$M$35,11,FALSE)) ->  | Q30: =IF(ISERROR(VLOOKUP(Q25,従業員情報!$B$6:$M$35,11,FALSE)),"",VLOOKUP(Q25,従業員情報!$B$6:$M$35,11,FALSE)) ->  | R30: =IF(ISERROR(VLOOKUP(R25,従業員情報!$B$6:$M$35,11,FALSE)),"",VLOOKUP(R25,従業員情報!$B$6:$M$35,11,FALSE)) ->  | S30: =IF(ISERROR(VLOOKUP(S25,従業員情報!$B$6:$M$35,11,FALSE)),"",VLOOKUP(S25,従業員情報!$B$6:$M$35,11,FALSE)) ->  | T30: =IF(ISERROR(VLOOKUP(T25,従業員情報!$B$6:$M$35,11,FALSE)),"",VLOOKUP(T25,従業員情報!$B$6:$M$35,11,FALSE)) ->  | U30: =IF(ISERROR(VLOOKUP(U25,従業員情報!$B$6:$M$35,11,FALSE)),"",VLOOKUP(U25,従業員情報!$B$6:$M$35,11,FALSE)) ->  | V30: =IF(ISERROR(VLOOKUP(V25,従業員情報!$B$6:$M$35,11,FALSE)),"",VLOOKUP(V25,従業員情報!$B$6:$M$35,11,FALSE)) ->  | W30: =IF(ISERROR(VLOOKUP(W25,従業員情報!$B$6:$M$35,11,FALSE)),"",VLOOKUP(W25,従業員情報!$B$6:$M$35,11,FALSE)) ->  | X30: =IF(ISERROR(VLOOKUP(X25,従業員情報!$B$6:$M$35,11,FALSE)),"",VLOOKUP(X25,従業員情報!$B$6:$M$35,11,FALSE)) ->  | Y30: =IF(ISERROR(VLOOKUP(Y25,従業員情報!$B$6:$M$35,11,FALSE)),"",VLOOKUP(Y25,従業員情報!$B$6:$M$35,11,FALSE)) ->  | Z30: =IF(ISERROR(VLOOKUP(Z25,従業員情報!$B$6:$M$35,11,FALSE)),"",VLOOKUP(Z25,従業員情報!$B$6:$M$35,11,FALSE)) ->  | AA30: =IF(ISERROR(VLOOKUP(AA25,従業員情報!$B$6:$M$35,11,FALSE)),"",VLOOKUP(AA25,従業員情報!$B$6:$M$35,11,FALSE)) ->  | AB30: =IF(ISERROR(VLOOKUP(AB25,従業員情報!$B$6:$M$35,11,FALSE)),"",VLOOKUP(AB25,従業員情報!$B$6:$M$35,11,FALSE)) ->  | AC30: =IF(ISERROR(VLOOKUP(AC25,従業員情報!$B$6:$M$35,11,FALSE)),"",VLOOKUP(AC25,従業員情報!$B$6:$M$35,11,FALSE)) ->  | AD30: =IF(ISERROR(VLOOKUP(AD25,従業員情報!$B$6:$M$35,11,FALSE)),"",VLOOKUP(AD25,従業員情報!$B$6:$M$35,11,FALSE)) ->  | AE30: =IF(ISERROR(VLOOKUP(AE25,従業員情報!$B$6:$M$35,11,FALSE)),"",VLOOKUP(AE25,従業員情報!$B$6:$M$35,11,FALSE)) ->  | AF30: =IF(ISERROR(VLOOKUP(AF25,従業員情報!$B$6:$M$35,11,FALSE)),"",VLOOKUP(AF25,従業員情報!$B$6:$M$35,11,FALSE)) -> 
B31: 退職／継続雇用 | C31: =IF(VLOOKUP(C25,従業員情報!$B$6:$M$35,8,FALSE)="","",VLOOKUP(C25,従業員情報!$B$6:$M$35,8,FALSE)) ->  | D31: =IF(VLOOKUP(D25,従業員情報!$B$6:$M$35,8,FALSE)="","",VLOOKUP(D25,従業員情報!$B$6:$M$35,8,FALSE)) ->  | E31: =IF(VLOOKUP(E25,従業員情報!$B$6:$M$35,8,FALSE)="","",VLOOKUP(E25,従業員情報!$B$6:$M$35,8,FALSE)) ->  | F31: =IF(VLOOKUP(F25,従業員情報!$B$6:$M$35,8,FALSE)="","",VLOOKUP(F25,従業員情報!$B$6:$M$35,8,FALSE)) ->  | G31: =IF(VLOOKUP(G25,従業員情報!$B$6:$M$35,8,FALSE)="","",VLOOKUP(G25,従業員情報!$B$6:$M$35,8,FALSE)) ->  | H31: =IF(VLOOKUP(H25,従業員情報!$B$6:$M$35,8,FALSE)="","",VLOOKUP(H25,従業員情報!$B$6:$M$35,8,FALSE)) -> 退職 | I31: =IF(VLOOKUP(I25,従業員情報!$B$6:$M$35,8,FALSE)="","",VLOOKUP(I25,従業員情報!$B$6:$M$35,8,FALSE)) ->  | J31: =IF(VLOOKUP(J25,従業員情報!$B$6:$M$35,8,FALSE)="","",VLOOKUP(J25,従業員情報!$B$6:$M$35,8,FALSE)) ->  | K31: =IF(VLOOKUP(K25,従業員情報!$B$6:$M$35,8,FALSE)="","",VLOOKUP(K25,従業員情報!$B$6:$M$35,8,FALSE)) -> 継続雇用制度に移行 | L31: =IF(VLOOKUP(L25,従業員情報!$B$6:$M$35,8,FALSE)="","",VLOOKUP(L25,従業員情報!$B$6:$M$35,8,FALSE)) -> 継続雇用制度に移行 | M31: =IF(VLOOKUP(M25,従業員情報!$B$6:$M$35,8,FALSE)="","",VLOOKUP(M25,従業員情報!$B$6:$M$35,8,FALSE)) ->  | N31: =IF(VLOOKUP(N25,従業員情報!$B$6:$M$35,8,FALSE)="","",VLOOKUP(N25,従業員情報!$B$6:$M$35,8,FALSE)) ->  | O31: =IF(VLOOKUP(O25,従業員情報!$B$6:$M$35,8,FALSE)="","",VLOOKUP(O25,従業員情報!$B$6:$M$35,8,FALSE)) ->  | P31: =IF(VLOOKUP(P25,従業員情報!$B$6:$M$35,8,FALSE)="","",VLOOKUP(P25,従業員情報!$B$6:$M$35,8,FALSE)) ->  | Q31: =IF(VLOOKUP(Q25,従業員情報!$B$6:$M$35,8,FALSE)="","",VLOOKUP(Q25,従業員情報!$B$6:$M$35,8,FALSE)) ->  | R31: =IF(VLOOKUP(R25,従業員情報!$B$6:$M$35,8,FALSE)="","",VLOOKUP(R25,従業員情報!$B$6:$M$35,8,FALSE)) ->  | S31: =IF(VLOOKUP(S25,従業員情報!$B$6:$M$35,8,FALSE)="","",VLOOKUP(S25,従業員情報!$B$6:$M$35,8,FALSE)) ->  | T31: =IF(VLOOKUP(T25,従業員情報!$B$6:$M$35,8,FALSE)="","",VLOOKUP(T25,従業員情報!$B$6:$M$35,8,FALSE)) ->  | U31: =IF(VLOOKUP(U25,従業員情報!$B$6:$M$35,8,FALSE)="","",VLOOKUP(U25,従業員情報!$B$6:$M$35,8,FALSE)) ->  | V31: =IF(VLOOKUP(V25,従業員情報!$B$6:$M$35,8,FALSE)="","",VLOOKUP(V25,従業員情報!$B$6:$M$35,8,FALSE)) ->  | W31: =IF(VLOOKUP(W25,従業員情報!$B$6:$M$35,8,FALSE)="","",VLOOKUP(W25,従業員情報!$B$6:$M$35,8,FALSE)) ->  | X31: =IF(VLOOKUP(X25,従業員情報!$B$6:$M$35,8,FALSE)="","",VLOOKUP(X25,従業員情報!$B$6:$M$35,8,FALSE)) ->  | Y31: =IF(VLOOKUP(Y25,従業員情報!$B$6:$M$35,8,FALSE)="","",VLOOKUP(Y25,従業員情報!$B$6:$M$35,8,FALSE)) ->  | Z31: =IF(VLOOKUP(Z25,従業員情報!$B$6:$M$35,8,FALSE)="","",VLOOKUP(Z25,従業員情報!$B$6:$M$35,8,FALSE)) ->  | AA31: =IF(VLOOKUP(AA25,従業員情報!$B$6:$M$35,8,FALSE)="","",VLOOKUP(AA25,従業員情報!$B$6:$M$35,8,FALSE)) ->  | AB31: =IF(VLOOKUP(AB25,従業員情報!$B$6:$M$35,8,FALSE)="","",VLOOKUP(AB25,従業員情報!$B$6:$M$35,8,FALSE)) ->  | AC31: =IF(VLOOKUP(AC25,従業員情報!$B$6:$M$35,8,FALSE)="","",VLOOKUP(AC25,従業員情報!$B$6:$M$35,8,FALSE)) ->  | AD31: =IF(VLOOKUP(AD25,従業員情報!$B$6:$M$35,8,FALSE)="","",VLOOKUP(AD25,従業員情報!$B$6:$M$35,8,FALSE)) ->  | AE31: =IF(VLOOKUP(AE25,従業員情報!$B$6:$M$35,8,FALSE)="","",VLOOKUP(AE25,従業員情報!$B$6:$M$35,8,FALSE)) ->  | AF31: =IF(VLOOKUP(AF25,従業員情報!$B$6:$M$35,8,FALSE)="","",VLOOKUP(AF25,従業員情報!$B$6:$M$35,8,FALSE)) -> 
B32: 退職日 | C32: =IF(C27<>"該当","",IF(C31="退職",C30,$B$45+1)) ->  | D32: =IF(D27<>"該当","",IF(D31="退職",D30,$B$45+1)) ->  | F32: 2015-10-01 | G32: 2015-10-01 | H32: 2016-07-31 | I32: 2015-10-01 | J32: 2015-10-01 | K32: 2015-10-01 | L32: 2015-10-01
B33: 継続雇用開始 | C33: =IF(C27<>"該当","",IF(C31="継続雇用制度に移行",C30+1,$B$45+1)) ->  | D33: =IF(D27<>"該当","",IF(D31="継続雇用制度に移行",D30+1,$B$45+1)) ->  | F33: 2015-10-01 | G33: 2015-10-01 | H33: 2015-10-01 | I33: 2015-10-01 | J33: 2015-10-01 | K33: 2015-07-01
B34: =基本情報!G11 -> 2014-10-01 | F34: 220000 | G34: 30000 | H34: 230500 | K34: 172000 | L34: 165000 | AG34: =SUM(C34:AF34) -> 817500 | AH34: =COUNTIFS(C$28:AF$28,"該当",C34:AF34,">0",C$33:AF$33,">"&B34) -> 2
B35: =EOMONTH(B34,1) -> 2014-11-30 | F35: 232000 | G35: 50000 | H35: 237000 | K35: 168000 | L35: 183000 | AG35: =SUM(C35:AF35) -> 870000 | AH35: =COUNTIFS(C$28:AF$28,"該当",C35:AF35,">0",C$33:AF$33,">"&B35) -> 2
B36: =EOMONTH(B35,1) -> 2014-12-31 | F36: 235000 | G36: 40000 | H36: 230500 | K36: 152000 | L36: 156000 | AG36: 813500 | AH36: 2
B37: 2015-01-31 | F37: 222000 | G37: 30000 | H37: 280300 | K37: 193000 | L37: 156000 | AG37: 881300 | AH37: 2
B38: 2015-02-28 | F38: 238000 | G38: 10000 | H38: 290200 | J38: 168000 | K38: 168000 | L38: 172000 | AG38: 1046200 | AH38: 3
B39: 2015-03-31 | F39: 229000 | G39: 50000 | H39: 290500 | J39: 172000 | K39: 121000 | L39: 182000 | AG39: 1044500 | AH39: 3
B40: 2015-04-30 | F40: 228000 | G40: 60000 | H40: 280000 | J40: 168000 | K40: 158000 | L40: 152500 | AG40: 1046500 | AH40: 3
B41: 2015-05-31 | F41: 231000 | G41: 80000 | H41: 275600 | J41: 198000 | K41: 168000 | L41: 132000 | AG41: 1084600 | AH41: 3
B42: 2015-06-30 | F42: 240500 | G42: 20000 | J42: 172000 | K42: 189000 | L42: 85000 | AG42: 706500 | AH42: 2
B43: 2015-07-31 | F43: 259000 | G43: 50000 | J43: 182000 | K43: 192000 | L43: 93000 | AG43: 776000 | AH43: 2
B44: 2015-08-31 | F44: 232000 | G44: 60000 | J44: 168000 | K44: 179000 | L44: 54000 | AG44: 693000 | AH44: 2
B45: 2015-09-30 | F45: 219000 | G45: 80000 | J45: 199000 | K45: 189000 | AG45: 687000 | AH45: 2
B46: 賞与など（雇用保険加入者） | F46: 250000 | J46: 100000 | AG46: 350000
B47: 賞与など（継続雇用制度） | AG47: 0
B48: 賞与など（雇用保険非加入者） | G48: 20000 | AG48: 20000
B49: 合計 | C49: =SUM(C34:C48) -> 0 | D49: =SUM(D34:D48) -> 0 | E49: 0 | F49: 3035500 | G49: 580000 | H49: 2114600 | I49: 0 | J49: 1527000 | K49: 2049000 | L49: 1530500 | M49: 0 | N49: 0 | O49: 0 | P49: 0 | Q49: 0 | R49: 0 | S49: 0 | T49: 0 | U49: 0 | V49: 0 | W49: 0 | X49: 0 | Y49: 0 | Z49: 0 | AA49: 0 | AB49: 0 | AC49: 0 | AD49: 0 | AE49: 0 | AF49: 0 | AG49: =SUM(AG34:AG48) -> 10836600 | AH49: =SUM(AH34:AH48) -> 28
B50: うち継続雇用者の給与 | C50: =IF(C28="該当",SUM(C34:C45)+C46+C47,0) -> 0 | D50: =IF(D28="該当",SUM(D34:D45)+D46+D47,0) -> 0 | E50: 0 | F50: 3035500 | G50: 0 | H50: 2114600 | I50: 0 | J50: 1527000 | K50: 0 | L50: 0 | M50: 0 | N50: 0 | O50: 0 | P50: 0 | Q50: 0 | R50: 0 | S50: 0 | T50: 0 | U50: 0 | V50: 0 | W50: 0 | X50: 0 | Y50: 0 | Z50: 0 | AA50: 0 | AB50: 0 | AC50: 0 | AD50: 0 | AE50: 0 | AF50: 0 | AG50: =SUM(C50:AF50) -> 6677100
B51: うち継続雇用制度対象者の給与 | C51: =IF(C28="該当",SUMIFS(C34:C45,$B34:$B45,">="&C33)+C47,0) -> 0 | D51: =IF(D28="該当",SUMIFS(D34:D45,$B34:$B45,">="&D33)+D47,0) -> 0 | E51: 0 | F51: 0 | G51: 0 | H51: 0 | I51: 0 | J51: 0 | K51: 0 | L51: 0 | M51: 0 | N51: 0 | O51: 0 | P51: 0 | Q51: 0 | R51: 0 | S51: 0 | T51: 0 | U51: 0 | V51: 0 | W51: 0 | X51: 0 | Y51: 0 | Z51: 0 | AA51: 0 | AB51: 0 | AC51: 0 | AD51: 0 | AE51: 0 | AF51: 0 | AG51: =SUM(C51:AF51) -> 0
B53: ３、（適用年度）雇用者給与等支給額の入力
B54: Ｎｏ． | C54: 1 | D54: 2 | E54: 3 | F54: 4 | G54: 5 | H54: 6 | I54: 7 | J54: 8 | K54: 9 | L54: 10 | M54: 11 | N54: 12 | O54: 13 | P54: 14 | Q54: 15 | R54: 16 | S54: 17 | T54: 18 | U54: 19 | V54: 20 | W54: 21 | X54: 22 | Y54: 23 | Z54: 24 | AA54: 25 | AB54: 26 | AC54: 27 | AD54: 28 | AE54: 29 | AF54: 30 | AG54: 合計 | AH54: 月別継続 雇用者数
B55: 名前 | C55: =VLOOKUP(C54,従業員情報!$B$6:$C$35,2,FALSE) -> 今野 友夫 | D55: =VLOOKUP(D54,従業員情報!$B$6:$C$35,2,FALSE) -> 今野 朝子 | E55: =VLOOKUP(E54,従業員情報!$B$6:$C$35,2,FALSE) -> 今野 祥子 | F55: =VLOOKUP(F54,従業員情報!$B$6:$C$35,2,FALSE) -> 川西 めぐみ | G55: =VLOOKUP(G54,従業員情報!$B$6:$C$35,2,FALSE) -> 鳥居 雅之 | H55: =VLOOKUP(H54,従業員情報!$B$6:$C$35,2,FALSE) -> 絹延橋 みつ子 | I55: =VLOOKUP(I54,従業員情報!$B$6:$C$35,2,FALSE) -> 笹部 菜穂美 | J55: =VLOOKUP(J54,従業員情報!$B$6:$C$35,2,FALSE) -> 山下 典子 | K55: =VLOOKUP(K54,従業員情報!$B$6:$C$35,2,FALSE) -> 畦野 保則 | L55: =VLOOKUP(L54,従業員情報!$B$6:$C$35,2,FALSE) -> 滝山 隆一 | M55: =VLOOKUP(M54,従業員情報!$B$6:$C$35,2,FALSE) -> 0 | N55: =VLOOKUP(N54,従業員情報!$B$6:$C$35,2,FALSE) -> 0 | O55: =VLOOKUP(O54,従業員情報!$B$6:$C$35,2,FALSE) -> 0 | P55: =VLOOKUP(P54,従業員情報!$B$6:$C$35,2,FALSE) -> 0 | Q55: =VLOOKUP(Q54,従業員情報!$B$6:$C$35,2,FALSE) -> 0 | R55: =VLOOKUP(R54,従業員情報!$B$6:$C$35,2,FALSE) -> 0 | S55: =VLOOKUP(S54,従業員情報!$B$6:$C$35,2,FALSE) -> 0 | T55: =VLOOKUP(T54,従業員情報!$B$6:$C$35,2,FALSE) -> 0 | U55: =VLOOKUP(U54,従業員情報!$B$6:$C$35,2,FALSE) -> 0 | V55: =VLOOKUP(V54,従業員情報!$B$6:$C$35,2,FALSE) -> 0 | W55: =VLOOKUP(W54,従業員情報!$B$6:$C$35,2,FALSE) -> 0 | X55: =VLOOKUP(X54,従業員情報!$B$6:$C$35,2,FALSE) -> 0 | Y55: =VLOOKUP(Y54,従業員情報!$B$6:$C$35,2,FALSE) -> 0 | Z55: =VLOOKUP(Z54,従業員情報!$B$6:$C$35,2,FALSE) -> 0 | AA55: =VLOOKUP(AA54,従業員情報!$B$6:$C$35,2,FALSE) -> 0 | AB55: =VLOOKUP(AB54,従業員情報!$B$6:$C$35,2,FALSE) -> 0 | AC55: =VLOOKUP(AC54,従業員情報!$B$6:$C$35,2,FALSE) -> 0 | AD55: =VLOOKUP(AD54,従業員情報!$B$6:$C$35,2,FALSE) -> 0 | AE55: =VLOOKUP(AE54,従業員情報!$B$6:$C$35,2,FALSE) -> 0 | AF55: =VLOOKUP(AF54,従業員情報!$B$6:$C$35,2,FALSE) -> 0 | AG55: =SUM(C56:AF56) -> 0
B56: 国内雇用者 | C56: =IF(ISERROR(VLOOKUP(C54,従業員情報!$B$6:$H$35,4,FALSE)),"",VLOOKUP(C54,従業員情報!$B$6:$H$35,4,FALSE)) -> 0 | D56: =IF(ISERROR(VLOOKUP(D54,従業員情報!$B$6:$H$35,4,FALSE)),"",VLOOKUP(D54,従業員情報!$B$6:$H$35,4,FALSE)) -> 0 | E56: =IF(ISERROR(VLOOKUP(E54,従業員情報!$B$6:$H$35,4,FALSE)),"",VLOOKUP(E54,従業員情報!$B$6:$H$35,4,FALSE)) -> 0 | F56: =IF(ISERROR(VLOOKUP(F54,従業員情報!$B$6:$H$35,4,FALSE)),"",VLOOKUP(F54,従業員情報!$B$6:$H$35,4,FALSE)) -> 該当 | G56: =IF(ISERROR(VLOOKUP(G54,従業員情報!$B$6:$H$35,4,FALSE)),"",VLOOKUP(G54,従業員情報!$B$6:$H$35,4,FALSE)) -> 該当 | H56: =IF(ISERROR(VLOOKUP(H54,従業員情報!$B$6:$H$35,4,FALSE)),"",VLOOKUP(H54,従業員情報!$B$6:$H$35,4,FALSE)) -> 該当 | I56: =IF(ISERROR(VLOOKUP(I54,従業員情報!$B$6:$H$35,4,FALSE)),"",VLOOKUP(I54,従業員情報!$B$6:$H$35,4,FALSE)) -> 該当 | J56: =IF(ISERROR(VLOOKUP(J54,従業員情報!$B$6:$H$35,4,FALSE)),"",VLOOKUP(J54,従業員情報!$B$6:$H$35,4,FALSE)) -> 該当 | K56: =IF(ISERROR(VLOOKUP(K54,従業員情報!$B$6:$H$35,4,FALSE)),"",VLOOKUP(K54,従業員情報!$B$6:$H$35,4,FALSE)) -> 該当 | L56: =IF(ISERROR(VLOOKUP(L54,従業員情報!$B$6:$H$35,4,FALSE)),"",VLOOKUP(L54,従業員情報!$B$6:$H$35,4,FALSE)) -> 該当 | M56: =IF(ISERROR(VLOOKUP(M54,従業員情報!$B$6:$H$35,4,FALSE)),"",VLOOKUP(M54,従業員情報!$B$6:$H$35,4,FALSE)) -> 0 | N56: =IF(ISERROR(VLOOKUP(N54,従業員情報!$B$6:$H$35,4,FALSE)),"",VLOOKUP(N54,従業員情報!$B$6:$H$35,4,FALSE)) -> 0 | O56: =IF(ISERROR(VLOOKUP(O54,従業員情報!$B$6:$H$35,4,FALSE)),"",VLOOKUP(O54,従業員情報!$B$6:$H$35,4,FALSE)) -> 0 | P56: =IF(ISERROR(VLOOKUP(P54,従業員情報!$B$6:$H$35,4,FALSE)),"",VLOOKUP(P54,従業員情報!$B$6:$H$35,4,FALSE)) -> 0 | Q56: =IF(ISERROR(VLOOKUP(Q54,従業員情報!$B$6:$H$35,4,FALSE)),"",VLOOKUP(Q54,従業員情報!$B$6:$H$35,4,FALSE)) -> 0 | R56: =IF(ISERROR(VLOOKUP(R54,従業員情報!$B$6:$H$35,4,FALSE)),"",VLOOKUP(R54,従業員情報!$B$6:$H$35,4,FALSE)) -> 0 | S56: =IF(ISERROR(VLOOKUP(S54,従業員情報!$B$6:$H$35,4,FALSE)),"",VLOOKUP(S54,従業員情報!$B$6:$H$35,4,FALSE)) -> 0 | T56: =IF(ISERROR(VLOOKUP(T54,従業員情報!$B$6:$H$35,4,FALSE)),"",VLOOKUP(T54,従業員情報!$B$6:$H$35,4,FALSE)) -> 0 | U56: =IF(ISERROR(VLOOKUP(U54,従業員情報!$B$6:$H$35,4,FALSE)),"",VLOOKUP(U54,従業員情報!$B$6:$H$35,4,FALSE)) -> 0 | V56: =IF(ISERROR(VLOOKUP(V54,従業員情報!$B$6:$H$35,4,FALSE)),"",VLOOKUP(V54,従業員情報!$B$6:$H$35,4,FALSE)) -> 0 | W56: =IF(ISERROR(VLOOKUP(W54,従業員情報!$B$6:$H$35,4,FALSE)),"",VLOOKUP(W54,従業員情報!$B$6:$H$35,4,FALSE)) -> 0 | X56: =IF(ISERROR(VLOOKUP(X54,従業員情報!$B$6:$H$35,4,FALSE)),"",VLOOKUP(X54,従業員情報!$B$6:$H$35,4,FALSE)) -> 0 | Y56: =IF(ISERROR(VLOOKUP(Y54,従業員情報!$B$6:$H$35,4,FALSE)),"",VLOOKUP(Y54,従業員情報!$B$6:$H$35,4,FALSE)) -> 0 | Z56: =IF(ISERROR(VLOOKUP(Z54,従業員情報!$B$6:$H$35,4,FALSE)),"",VLOOKUP(Z54,従業員情報!$B$6:$H$35,4,FALSE)) -> 0 | AA56: =IF(ISERROR(VLOOKUP(AA54,従業員情報!$B$6:$H$35,4,FALSE)),"",VLOOKUP(AA54,従業員情報!$B$6:$H$35,4,FALSE)) -> 0 | AB56: =IF(ISERROR(VLOOKUP(AB54,従業員情報!$B$6:$H$35,4,FALSE)),"",VLOOKUP(AB54,従業員情報!$B$6:$H$35,4,FALSE)) -> 0 | AC56: =IF(ISERROR(VLOOKUP(AC54,従業員情報!$B$6:$H$35,4,FALSE)),"",VLOOKUP(AC54,従業員情報!$B$6:$H$35,4,FALSE)) -> 0 | AD56: =IF(ISERROR(VLOOKUP(AD54,従業員情報!$B$6:$H$35,4,FALSE)),"",VLOOKUP(AD54,従業員情報!$B$6:$H$35,4,FALSE)) -> 0 | AE56: =IF(ISERROR(VLOOKUP(AE54,従業員情報!$B$6:$H$35,4,FALSE)),"",VLOOKUP(AE54,従業員情報!$B$6:$H$35,4,FALSE)) -> 0 | AF56: =IF(ISERROR(VLOOKUP(AF54,従業員情報!$B$6:$H$35,4,FALSE)),"",VLOOKUP(AF54,従業員情報!$B$6:$H$35,4,FALSE)) -> 0
B57: 継続雇用者 | C57: =IF(ISERROR(VLOOKUP(C54,従業員情報!$B$6:$M$35,12,FALSE)),"",VLOOKUP(C54,従業員情報!$B$6:$M$35,12,FALSE)) ->  | D57: =IF(ISERROR(VLOOKUP(D54,従業員情報!$B$6:$M$35,12,FALSE)),"",VLOOKUP(D54,従業員情報!$B$6:$M$35,12,FALSE)) ->  | E57: =IF(ISERROR(VLOOKUP(E54,従業員情報!$B$6:$M$35,12,FALSE)),"",VLOOKUP(E54,従業員情報!$B$6:$M$35,12,FALSE)) ->  | F57: =IF(ISERROR(VLOOKUP(F54,従業員情報!$B$6:$M$35,12,FALSE)),"",VLOOKUP(F54,従業員情報!$B$6:$M$35,12,FALSE)) -> 該当 | G57: =IF(ISERROR(VLOOKUP(G54,従業員情報!$B$6:$M$35,12,FALSE)),"",VLOOKUP(G54,従業員情報!$B$6:$M$35,12,FALSE)) ->  | H57: =IF(ISERROR(VLOOKUP(H54,従業員情報!$B$6:$M$35,12,FALSE)),"",VLOOKUP(H54,従業員情報!$B$6:$M$35,12,FALSE)) -> 該当 | I57: =IF(ISERROR(VLOOKUP(I54,従業員情報!$B$6:$M$35,12,FALSE)),"",VLOOKUP(I54,従業員情報!$B$6:$M$35,12,FALSE)) ->  | J57: =IF(ISERROR(VLOOKUP(J54,従業員情報!$B$6:$M$35,12,FALSE)),"",VLOOKUP(J54,従業員情報!$B$6:$M$35,12,FALSE)) -> 該当 | K57: =IF(ISERROR(VLOOKUP(K54,従業員情報!$B$6:$M$35,12,FALSE)),"",VLOOKUP(K54,従業員情報!$B$6:$M$35,12,FALSE)) ->  | L57: =IF(ISERROR(VLOOKUP(L54,従業員情報!$B$6:$M$35,12,FALSE)),"",VLOOKUP(L54,従業員情報!$B$6:$M$35,12,FALSE)) ->  | M57: =IF(ISERROR(VLOOKUP(M54,従業員情報!$B$6:$M$35,12,FALSE)),"",VLOOKUP(M54,従業員情報!$B$6:$M$35,12,FALSE)) ->  | N57: =IF(ISERROR(VLOOKUP(N54,従業員情報!$B$6:$M$35,12,FALSE)),"",VLOOKUP(N54,従業員情報!$B$6:$M$35,12,FALSE)) ->  | O57: =IF(ISERROR(VLOOKUP(O54,従業員情報!$B$6:$M$35,12,FALSE)),"",VLOOKUP(O54,従業員情報!$B$6:$M$35,12,FALSE)) ->  | P57: =IF(ISERROR(VLOOKUP(P54,従業員情報!$B$6:$M$35,12,FALSE)),"",VLOOKUP(P54,従業員情報!$B$6:$M$35,12,FALSE)) ->  | Q57: =IF(ISERROR(VLOOKUP(Q54,従業員情報!$B$6:$M$35,12,FALSE)),"",VLOOKUP(Q54,従業員情報!$B$6:$M$35,12,FALSE)) ->  | R57: =IF(ISERROR(VLOOKUP(R54,従業員情報!$B$6:$M$35,12,FALSE)),"",VLOOKUP(R54,従業員情報!$B$6:$M$35,12,FALSE)) ->  | S57: =IF(ISERROR(VLOOKUP(S54,従業員情報!$B$6:$M$35,12,FALSE)),"",VLOOKUP(S54,従業員情報!$B$6:$M$35,12,FALSE)) ->  | T57: =IF(ISERROR(VLOOKUP(T54,従業員情報!$B$6:$M$35,12,FALSE)),"",VLOOKUP(T54,従業員情報!$B$6:$M$35,12,FALSE)) ->  | U57: =IF(ISERROR(VLOOKUP(U54,従業員情報!$B$6:$M$35,12,FALSE)),"",VLOOKUP(U54,従業員情報!$B$6:$M$35,12,FALSE)) ->  | V57: =IF(ISERROR(VLOOKUP(V54,従業員情報!$B$6:$M$35,12,FALSE)),"",VLOOKUP(V54,従業員情報!$B$6:$M$35,12,FALSE)) ->  | W57: =IF(ISERROR(VLOOKUP(W54,従業員情報!$B$6:$M$35,12,FALSE)),"",VLOOKUP(W54,従業員情報!$B$6:$M$35,12,FALSE)) ->  | X57: =IF(ISERROR(VLOOKUP(X54,従業員情報!$B$6:$M$35,12,FALSE)),"",VLOOKUP(X54,従業員情報!$B$6:$M$35,12,FALSE)) ->  | Y57: =IF(ISERROR(VLOOKUP(Y54,従業員情報!$B$6:$M$35,12,FALSE)),"",VLOOKUP(Y54,従業員情報!$B$6:$M$35,12,FALSE)) ->  | Z57: =IF(ISERROR(VLOOKUP(Z54,従業員情報!$B$6:$M$35,12,FALSE)),"",VLOOKUP(Z54,従業員情報!$B$6:$M$35,12,FALSE)) ->  | AA57: =IF(ISERROR(VLOOKUP(AA54,従業員情報!$B$6:$M$35,12,FALSE)),"",VLOOKUP(AA54,従業員情報!$B$6:$M$35,12,FALSE)) ->  | AB57: =IF(ISERROR(VLOOKUP(AB54,従業員情報!$B$6:$M$35,12,FALSE)),"",VLOOKUP(AB54,従業員情報!$B$6:$M$35,12,FALSE)) ->  | AC57: =IF(ISERROR(VLOOKUP(AC54,従業員情報!$B$6:$M$35,12,FALSE)),"",VLOOKUP(AC54,従業員情報!$B$6:$M$35,12,FALSE)) ->  | AD57: =IF(ISERROR(VLOOKUP(AD54,従業員情報!$B$6:$M$35,12,FALSE)),"",VLOOKUP(AD54,従業員情報!$B$6:$M$35,12,FALSE)) ->  | AE57: =IF(ISERROR(VLOOKUP(AE54,従業員情報!$B$6:$M$35,12,FALSE)),"",VLOOKUP(AE54,従業員情報!$B$6:$M$35,12,FALSE)) ->  | AF57: =IF(ISERROR(VLOOKUP(AF54,従業員情報!$B$6:$M$35,12,FALSE)),"",VLOOKUP(AF54,従業員情報!$B$6:$M$35,12,FALSE)) -> 
B58: 被保険者開始月 | C58: =IF(ISERROR(VLOOKUP(C54,従業員情報!$B$6:$M$35,10,FALSE)),"",VLOOKUP(C54,従業員情報!$B$6:$M$35,10,FALSE)) ->  | D58: =IF(ISERROR(VLOOKUP(D54,従業員情報!$B$6:$M$35,10,FALSE)),"",VLOOKUP(D54,従業員情報!$B$6:$M$35,10,FALSE)) ->  | E58: =IF(ISERROR(VLOOKUP(E54,従業員情報!$B$6:$M$35,10,FALSE)),"",VLOOKUP(E54,従業員情報!$B$6:$M$35,10,FALSE)) ->  | F58: =IF(ISERROR(VLOOKUP(F54,従業員情報!$B$6:$M$35,10,FALSE)),"",VLOOKUP(F54,従業員情報!$B$6:$M$35,10,FALSE)) -> 2014-10-01 | G58: =IF(ISERROR(VLOOKUP(G54,従業員情報!$B$6:$M$35,10,FALSE)),"",VLOOKUP(G54,従業員情報!$B$6:$M$35,10,FALSE)) ->  | H58: =IF(ISERROR(VLOOKUP(H54,従業員情報!$B$6:$M$35,10,FALSE)),"",VLOOKUP(H54,従業員情報!$B$6:$M$35,10,FALSE)) -> 2014-10-01 | I58: =IF(ISERROR(VLOOKUP(I54,従業員情報!$B$6:$M$35,10,FALSE)),"",VLOOKUP(I54,従業員情報!$B$6:$M$35,10,FALSE)) -> 2016-06-30 | J58: =IF(ISERROR(VLOOKUP(J54,従業員情報!$B$6:$M$35,10,FALSE)),"",VLOOKUP(J54,従業員情報!$B$6:$M$35,10,FALSE)) -> 2014-11-30 | K58: =IF(ISERROR(VLOOKUP(K54,従業員情報!$B$6:$M$35,10,FALSE)),"",VLOOKUP(K54,従業員情報!$B$6:$M$35,10,FALSE)) -> 2014-10-01 | L58: =IF(ISERROR(VLOOKUP(L54,従業員情報!$B$6:$M$35,10,FALSE)),"",VLOOKUP(L54,従業員情報!$B$6:$M$35,10,FALSE)) -> 2014-10-01 | M58: =IF(ISERROR(VLOOKUP(M54,従業員情報!$B$6:$M$35,10,FALSE)),"",VLOOKUP(M54,従業員情報!$B$6:$M$35,10,FALSE)) ->  | N58: =IF(ISERROR(VLOOKUP(N54,従業員情報!$B$6:$M$35,10,FALSE)),"",VLOOKUP(N54,従業員情報!$B$6:$M$35,10,FALSE)) ->  | O58: =IF(ISERROR(VLOOKUP(O54,従業員情報!$B$6:$M$35,10,FALSE)),"",VLOOKUP(O54,従業員情報!$B$6:$M$35,10,FALSE)) ->  | P58: =IF(ISERROR(VLOOKUP(P54,従業員情報!$B$6:$M$35,10,FALSE)),"",VLOOKUP(P54,従業員情報!$B$6:$M$35,10,FALSE)) ->  | Q58: =IF(ISERROR(VLOOKUP(Q54,従業員情報!$B$6:$M$35,10,FALSE)),"",VLOOKUP(Q54,従業員情報!$B$6:$M$35,10,FALSE)) ->  | R58: =IF(ISERROR(VLOOKUP(R54,従業員情報!$B$6:$M$35,10,FALSE)),"",VLOOKUP(R54,従業員情報!$B$6:$M$35,10,FALSE)) ->  | S58: =IF(ISERROR(VLOOKUP(S54,従業員情報!$B$6:$M$35,10,FALSE)),"",VLOOKUP(S54,従業員情報!$B$6:$M$35,10,FALSE)) ->  | T58: =IF(ISERROR(VLOOKUP(T54,従業員情報!$B$6:$M$35,10,FALSE)),"",VLOOKUP(T54,従業員情報!$B$6:$M$35,10,FALSE)) ->  | U58: =IF(ISERROR(VLOOKUP(U54,従業員情報!$B$6:$M$35,10,FALSE)),"",VLOOKUP(U54,従業員情報!$B$6:$M$35,10,FALSE)) ->  | V58: =IF(ISERROR(VLOOKUP(V54,従業員情報!$B$6:$M$35,10,FALSE)),"",VLOOKUP(V54,従業員情報!$B$6:$M$35,10,FALSE)) ->  | W58: =IF(ISERROR(VLOOKUP(W54,従業員情報!$B$6:$M$35,10,FALSE)),"",VLOOKUP(W54,従業員情報!$B$6:$M$35,10,FALSE)) ->  | X58: =IF(ISERROR(VLOOKUP(X54,従業員情報!$B$6:$M$35,10,FALSE)),"",VLOOKUP(X54,従業員情報!$B$6:$M$35,10,FALSE)) ->  | Y58: =IF(ISERROR(VLOOKUP(Y54,従業員情報!$B$6:$M$35,10,FALSE)),"",VLOOKUP(Y54,従業員情報!$B$6:$M$35,10,FALSE)) ->  | Z58: =IF(ISERROR(VLOOKUP(Z54,従業員情報!$B$6:$M$35,10,FALSE)),"",VLOOKUP(Z54,従業員情報!$B$6:$M$35,10,FALSE)) ->  | AA58: =IF(ISERROR(VLOOKUP(AA54,従業員情報!$B$6:$M$35,10,FALSE)),"",VLOOKUP(AA54,従業員情報!$B$6:$M$35,10,FALSE)) ->  | AB58: =IF(ISERROR(VLOOKUP(AB54,従業員情報!$B$6:$M$35,10,FALSE)),"",VLOOKUP(AB54,従業員情報!$B$6:$M$35,10,FALSE)) ->  | AC58: =IF(ISERROR(VLOOKUP(AC54,従業員情報!$B$6:$M$35,10,FALSE)),"",VLOOKUP(AC54,従業員情報!$B$6:$M$35,10,FALSE)) ->  | AD58: =IF(ISERROR(VLOOKUP(AD54,従業員情報!$B$6:$M$35,10,FALSE)),"",VLOOKUP(AD54,従業員情報!$B$6:$M$35,10,FALSE)) ->  | AE58: =IF(ISERROR(VLOOKUP(AE54,従業員情報!$B$6:$M$35,10,FALSE)),"",VLOOKUP(AE54,従業員情報!$B$6:$M$35,10,FALSE)) ->  | AF58: =IF(ISERROR(VLOOKUP(AF54,従業員情報!$B$6:$M$35,10,FALSE)),"",VLOOKUP(AF54,従業員情報!$B$6:$M$35,10,FALSE)) -> 
B59: 被保険者終了月 | C59: =IF(ISERROR(VLOOKUP(C54,従業員情報!$B$6:$M$35,11,FALSE)),"",VLOOKUP(C54,従業員情報!$B$6:$M$35,11,FALSE)) ->  | D59: =IF(ISERROR(VLOOKUP(D54,従業員情報!$B$6:$M$35,11,FALSE)),"",VLOOKUP(D54,従業員情報!$B$6:$M$35,11,FALSE)) ->  | E59: =IF(ISERROR(VLOOKUP(E54,従業員情報!$B$6:$M$35,11,FALSE)),"",VLOOKUP(E54,従業員情報!$B$6:$M$35,11,FALSE)) ->  | F59: =IF(ISERROR(VLOOKUP(F54,従業員情報!$B$6:$M$35,11,FALSE)),"",VLOOKUP(F54,従業員情報!$B$6:$M$35,11,FALSE)) -> 2016-09-30 | G59: =IF(ISERROR(VLOOKUP(G54,従業員情報!$B$6:$M$35,11,FALSE)),"",VLOOKUP(G54,従業員情報!$B$6:$M$35,11,FALSE)) ->  | H59: =IF(ISERROR(VLOOKUP(H54,従業員情報!$B$6:$M$35,11,FALSE)),"",VLOOKUP(H54,従業員情報!$B$6:$M$35,11,FALSE)) -> 2016-07-31 | I59: =IF(ISERROR(VLOOKUP(I54,従業員情報!$B$6:$M$35,11,FALSE)),"",VLOOKUP(I54,従業員情報!$B$6:$M$35,11,FALSE)) -> 2016-09-30 | J59: =IF(ISERROR(VLOOKUP(J54,従業員情報!$B$6:$M$35,11,FALSE)),"",VLOOKUP(J54,従業員情報!$B$6:$M$35,11,FALSE)) -> 2016-09-30 | K59: =IF(ISERROR(VLOOKUP(K54,従業員情報!$B$6:$M$35,11,FALSE)),"",VLOOKUP(K54,従業員情報!$B$6:$M$35,11,FALSE)) -> 2015-06-30 | L59: =IF(ISERROR(VLOOKUP(L54,従業員情報!$B$6:$M$35,11,FALSE)),"",VLOOKUP(L54,従業員情報!$B$6:$M$35,11,FALSE)) ->  | M59: =IF(ISERROR(VLOOKUP(M54,従業員情報!$B$6:$M$35,11,FALSE)),"",VLOOKUP(M54,従業員情報!$B$6:$M$35,11,FALSE)) ->  | N59: =IF(ISERROR(VLOOKUP(N54,従業員情報!$B$6:$M$35,11,FALSE)),"",VLOOKUP(N54,従業員情報!$B$6:$M$35,11,FALSE)) ->  | O59: =IF(ISERROR(VLOOKUP(O54,従業員情報!$B$6:$M$35,11,FALSE)),"",VLOOKUP(O54,従業員情報!$B$6:$M$35,11,FALSE)) ->  | P59: =IF(ISERROR(VLOOKUP(P54,従業員情報!$B$6:$M$35,11,FALSE)),"",VLOOKUP(P54,従業員情報!$B$6:$M$35,11,FALSE)) ->  | Q59: =IF(ISERROR(VLOOKUP(Q54,従業員情報!$B$6:$M$35,11,FALSE)),"",VLOOKUP(Q54,従業員情報!$B$6:$M$35,11,FALSE)) ->  | R59: =IF(ISERROR(VLOOKUP(R54,従業員情報!$B$6:$M$35,11,FALSE)),"",VLOOKUP(R54,従業員情報!$B$6:$M$35,11,FALSE)) ->  | S59: =IF(ISERROR(VLOOKUP(S54,従業員情報!$B$6:$M$35,11,FALSE)),"",VLOOKUP(S54,従業員情報!$B$6:$M$35,11,FALSE)) ->  | T59: =IF(ISERROR(VLOOKUP(T54,従業員情報!$B$6:$M$35,11,FALSE)),"",VLOOKUP(T54,従業員情報!$B$6:$M$35,11,FALSE)) ->  | U59: =IF(ISERROR(VLOOKUP(U54,従業員情報!$B$6:$M$35,11,FALSE)),"",VLOOKUP(U54,従業員情報!$B$6:$M$35,11,FALSE)) ->  | V59: =IF(ISERROR(VLOOKUP(V54,従業員情報!$B$6:$M$35,11,FALSE)),"",VLOOKUP(V54,従業員情報!$B$6:$M$35,11,FALSE)) ->  | W59: =IF(ISERROR(VLOOKUP(W54,従業員情報!$B$6:$M$35,11,FALSE)),"",VLOOKUP(W54,従業員情報!$B$6:$M$35,11,FALSE)) ->  | X59: =IF(ISERROR(VLOOKUP(X54,従業員情報!$B$6:$M$35,11,FALSE)),"",VLOOKUP(X54,従業員情報!$B$6:$M$35,11,FALSE)) ->  | Y59: =IF(ISERROR(VLOOKUP(Y54,従業員情報!$B$6:$M$35,11,FALSE)),"",VLOOKUP(Y54,従業員情報!$B$6:$M$35,11,FALSE)) ->  | Z59: =IF(ISERROR(VLOOKUP(Z54,従業員情報!$B$6:$M$35,11,FALSE)),"",VLOOKUP(Z54,従業員情報!$B$6:$M$35,11,FALSE)) ->  | AA59: =IF(ISERROR(VLOOKUP(AA54,従業員情報!$B$6:$M$35,11,FALSE)),"",VLOOKUP(AA54,従業員情報!$B$6:$M$35,11,FALSE)) ->  | AB59: =IF(ISERROR(VLOOKUP(AB54,従業員情報!$B$6:$M$35,11,FALSE)),"",VLOOKUP(AB54,従業員情報!$B$6:$M$35,11,FALSE)) ->  | AC59: =IF(ISERROR(VLOOKUP(AC54,従業員情報!$B$6:$M$35,11,FALSE)),"",VLOOKUP(AC54,従業員情報!$B$6:$M$35,11,FALSE)) ->  | AD59: =IF(ISERROR(VLOOKUP(AD54,従業員情報!$B$6:$M$35,11,FALSE)),"",VLOOKUP(AD54,従業員情報!$B$6:$M$35,11,FALSE)) ->  | AE59: =IF(ISERROR(VLOOKUP(AE54,従業員情報!$B$6:$M$35,11,FALSE)),"",VLOOKUP(AE54,従業員情報!$B$6:$M$35,11,FALSE)) ->  | AF59: =IF(ISERROR(VLOOKUP(AF54,従業員情報!$B$6:$M$35,11,FALSE)),"",VLOOKUP(AF54,従業員情報!$B$6:$M$35,11,FALSE)) -> 
B60: 退職／継続雇用 | C60: =IF(VLOOKUP(C54,従業員情報!$B$6:$M$35,8,FALSE)="","",VLOOKUP(C54,従業員情報!$B$6:$M$35,8,FALSE)) ->  | D60: =IF(VLOOKUP(D54,従業員情報!$B$6:$M$35,8,FALSE)="","",VLOOKUP(D54,従業員情報!$B$6:$M$35,8,FALSE)) ->  | E60: =IF(VLOOKUP(E54,従業員情報!$B$6:$M$35,8,FALSE)="","",VLOOKUP(E54,従業員情報!$B$6:$M$35,8,FALSE)) ->  | F60: =IF(VLOOKUP(F54,従業員情報!$B$6:$M$35,8,FALSE)="","",VLOOKUP(F54,従業員情報!$B$6:$M$35,8,FALSE)) ->  | G60: =IF(VLOOKUP(G54,従業員情報!$B$6:$M$35,8,FALSE)="","",VLOOKUP(G54,従業員情報!$B$6:$M$35,8,FALSE)) ->  | H60: =IF(VLOOKUP(H54,従業員情報!$B$6:$M$35,8,FALSE)="","",VLOOKUP(H54,従業員情報!$B$6:$M$35,8,FALSE)) -> 退職 | I60: =IF(VLOOKUP(I54,従業員情報!$B$6:$M$35,8,FALSE)="","",VLOOKUP(I54,従業員情報!$B$6:$M$35,8,FALSE)) ->  | J60: =IF(VLOOKUP(J54,従業員情報!$B$6:$M$35,8,FALSE)="","",VLOOKUP(J54,従業員情報!$B$6:$M$35,8,FALSE)) ->  | K60: =IF(VLOOKUP(K54,従業員情報!$B$6:$M$35,8,FALSE)="","",VLOOKUP(K54,従業員情報!$B$6:$M$35,8,FALSE)) -> 継続雇用制度に移行 | L60: =IF(VLOOKUP(L54,従業員情報!$B$6:$M$35,8,FALSE)="","",VLOOKUP(L54,従業員情報!$B$6:$M$35,8,FALSE)) -> 継続雇用制度に移行 | M60: =IF(VLOOKUP(M54,従業員情報!$B$6:$M$35,8,FALSE)="","",VLOOKUP(M54,従業員情報!$B$6:$M$35,8,FALSE)) ->  | N60: =IF(VLOOKUP(N54,従業員情報!$B$6:$M$35,8,FALSE)="","",VLOOKUP(N54,従業員情報!$B$6:$M$35,8,FALSE)) ->  | O60: =IF(VLOOKUP(O54,従業員情報!$B$6:$M$35,8,FALSE)="","",VLOOKUP(O54,従業員情報!$B$6:$M$35,8,FALSE)) ->  | P60: =IF(VLOOKUP(P54,従業員情報!$B$6:$M$35,8,FALSE)="","",VLOOKUP(P54,従業員情報!$B$6:$M$35,8,FALSE)) ->  | Q60: =IF(VLOOKUP(Q54,従業員情報!$B$6:$M$35,8,FALSE)="","",VLOOKUP(Q54,従業員情報!$B$6:$M$35,8,FALSE)) ->  | R60: =IF(VLOOKUP(R54,従業員情報!$B$6:$M$35,8,FALSE)="","",VLOOKUP(R54,従業員情報!$B$6:$M$35,8,FALSE)) ->  | S60: =IF(VLOOKUP(S54,従業員情報!$B$6:$M$35,8,FALSE)="","",VLOOKUP(S54,従業員情報!$B$6:$M$35,8,FALSE)) ->  | T60: =IF(VLOOKUP(T54,従業員情報!$B$6:$M$35,8,FALSE)="","",VLOOKUP(T54,従業員情報!$B$6:$M$35,8,FALSE)) ->  | U60: =IF(VLOOKUP(U54,従業員情報!$B$6:$M$35,8,FALSE)="","",VLOOKUP(U54,従業員情報!$B$6:$M$35,8,FALSE)) ->  | V60: =IF(VLOOKUP(V54,従業員情報!$B$6:$M$35,8,FALSE)="","",VLOOKUP(V54,従業員情報!$B$6:$M$35,8,FALSE)) ->  | W60: =IF(VLOOKUP(W54,従業員情報!$B$6:$M$35,8,FALSE)="","",VLOOKUP(W54,従業員情報!$B$6:$M$35,8,FALSE)) ->  | X60: =IF(VLOOKUP(X54,従業員情報!$B$6:$M$35,8,FALSE)="","",VLOOKUP(X54,従業員情報!$B$6:$M$35,8,FALSE)) ->  | Y60: =IF(VLOOKUP(Y54,従業員情報!$B$6:$M$35,8,FALSE)="","",VLOOKUP(Y54,従業員情報!$B$6:$M$35,8,FALSE)) ->  | Z60: =IF(VLOOKUP(Z54,従業員情報!$B$6:$M$35,8,FALSE)="","",VLOOKUP(Z54,従業員情報!$B$6:$M$35,8,FALSE)) ->  | AA60: =IF(VLOOKUP(AA54,従業員情報!$B$6:$M$35,8,FALSE)="","",VLOOKUP(AA54,従業員情報!$B$6:$M$35,8,FALSE)) ->  | AB60: =IF(VLOOKUP(AB54,従業員情報!$B$6:$M$35,8,FALSE)="","",VLOOKUP(AB54,従業員情報!$B$6:$M$35,8,FALSE)) ->  | AC60: =IF(VLOOKUP(AC54,従業員情報!$B$6:$M$35,8,FALSE)="","",VLOOKUP(AC54,従業員情報!$B$6:$M$35,8,FALSE)) ->  | AD60: =IF(VLOOKUP(AD54,従業員情報!$B$6:$M$35,8,FALSE)="","",VLOOKUP(AD54,従業員情報!$B$6:$M$35,8,FALSE)) ->  | AE60: =IF(VLOOKUP(AE54,従業員情報!$B$6:$M$35,8,FALSE)="","",VLOOKUP(AE54,従業員情報!$B$6:$M$35,8,FALSE)) ->  | AF60: =IF(VLOOKUP(AF54,従業員情報!$B$6:$M$35,8,FALSE)="","",VLOOKUP(AF54,従業員情報!$B$6:$M$35,8,FALSE)) -> 
B61: 退職日 | C61: =IF(C56<>"該当","",IF(C60="退職",C59,$B$74+1)) ->  | D61: =IF(D56<>"該当","",IF(D60="退職",D59,$B$74+1)) ->  | F61: 2016-10-01 | G61: 2016-10-01 | H61: 2016-07-31 | I61: 2016-10-01 | J61: 2016-10-01 | K61: 2016-10-01 | L61: 2016-10-01
B62: 継続雇用開始 | C62: =IF(C56<>"該当","",IF(C60="継続雇用制度に移行",C59+1,$B$74+1)) ->  | D62: =IF(D56<>"該当","",IF(D60="継続雇用制度に移行",D59+1,$B$74+1)) ->  | F62: 2016-10-01 | G62: 2016-10-01 | H62: 2016-10-01 | I62: 2016-10-01 | J62: 2016-10-01 | K62: 2015-07-01
B63: =基本情報!D11 -> 2015-10-01 | F63: 283000 | G63: 20000 | J63: 208000 | K63: 172000 | AG63: =SUM(C63:AF63) -> 683000 | AH63: =COUNTIFS(C$57:AF$57,"該当",C63:AF63,">0",C$62:AF$62,">"&B63) -> 2
B64: =EOMONTH(B63,1) -> 2015-11-30 | F64: 261400 | G64: 60000 | J64: 193000 | K64: 168000 | AG64: =SUM(C64:AF64) -> 682400 | AH64: =COUNTIFS(C$57:AF$57,"該当",C64:AF64,">0",C$62:AF$62,">"&B64) -> 2
B65: =EOMONTH(B64,1) -> 2015-12-31 | F65: 254500 | G65: 10000 | J65: 198000 | K65: 192000 | AG65: 654500 | AH65: 2
B66: 2016-01-31 | F66: 250500 | G66: 70000 | J66: 188000 | K66: 193000 | AG66: 701500 | AH66: 2
B67: 2016-02-29 | F67: 268000 | G67: 20000 | J67: 192000 | K67: 168000 | AG67: 648000 | AH67: 2
B68: 2016-03-31 | F68: 230200 | G68: 30000 | J68: 192000 | K68: 201000 | AG68: 653200 | AH68: 2
B69: 2016-04-30 | F69: 289000 | G69: 80000 | J69: 206000 | K69: 188000 | AG69: 763000 | AH69: 2
B70: 2016-05-31 | F70: 265000 | G70: 70000 | J70: 200000 | K70: 168000 | AG70: 703000 | AH70: 2
B71: 2016-06-30 | F71: 320800 | G71: 30000 | I71: 330500 | J71: 195000 | K71: 189000 | AG71: 1065300 | AH71: 2
B72: 2016-07-31 | F72: 262000 | G72: 60000 | I72: 220300 | J72: 185000 | K72: 80000 | AG72: 807300 | AH72: 2
B73: 2016-08-31 | F73: 356000 | G73: 40000 | I73: 240800 | J73: 199000 | K73: 79000 | AG73: 914800 | AH73: 2
B74: 2016-09-30 | F74: 293000 | G74: 90000 | I74: 220300 | J74: 218000 | K74: 89000 | AG74: 910300 | AH74: 2
B75: 賞与など（雇用保険加入者） | F75: 300000 | I75: 100000 | J75: 200000 | AG75: 600000
B76: 賞与など（継続雇用制度） | K76: 20000 | AG76: 20000
B77: 賞与など（雇用保険非加入者） | G77: 20000 | AG77: 20000
B78: 合計 | C78: =SUM(C63:C77) -> 0 | D78: =SUM(D63:D77) -> 0 | E78: 0 | F78: 3633400 | G78: 600000 | H78: 0 | I78: 1111900 | J78: 2574000 | K78: 1907000 | L78: 0 | M78: 0 | N78: 0 | O78: 0 | P78: 0 | Q78: 0 | R78: 0 | S78: 0 | T78: 0 | U78: 0 | V78: 0 | W78: 0 | X78: 0 | Y78: 0 | Z78: 0 | AA78: 0 | AB78: 0 | AC78: 0 | AD78: 0 | AE78: 0 | AF78: 0 | AG78: =SUM(AG63:AG77) -> 9826300 | AH78: =SUM(AH63:AH77) -> 24
B79: うち継続雇用者の給与 | C79: =IF(C57="該当",SUM(C63:C74)+C75+C76,0) -> 0 | D79: =IF(D57="該当",SUM(D63:D74)+D75+D76,0) -> 0 | E79: 0 | F79: 3633400 | G79: 0 | H79: 0 | I79: 0 | J79: 2574000 | K79: 0 | L79: 0 | M79: 0 | N79: 0 | O79: 0 | P79: 0 | Q79: 0 | R79: 0 | S79: 0 | T79: 0 | U79: 0 | V79: 0 | W79: 0 | X79: 0 | Y79: 0 | Z79: 0 | AA79: 0 | AB79: 0 | AC79: 0 | AD79: 0 | AE79: 0 | AF79: 0 | AG79: =SUM(C79:AF79) -> 6207400
B80: うち継続雇用制度対象者の給与 | C80: =IF(C57="該当",SUMIFS(C63:C74,$B63:$B74,">="&C62)+C76,0) -> 0 | D80: =IF(D57="該当",SUMIFS(D63:D74,$B63:$B74,">="&D62)+D76,0) -> 0 | E80: 0 | F80: 0 | G80: 0 | H80: 0 | I80: 0 | J80: 0 | K80: 0 | L80: 0 | M80: 0 | N80: 0 | O80: 0 | P80: 0 | Q80: 0 | R80: 0 | S80: 0 | T80: 0 | U80: 0 | V80: 0 | W80: 0 | X80: 0 | Y80: 0 | Z80: 0 | AA80: 0 | AB80: 0 | AC80: 0 | AD80: 0 | AE80: 0 | AF80: 0 | AG80: =SUM(C80:AF80) -> 0

Sheet 別表６（２０） (hidden)
C2: 雇用者給与等支給額が増加した場合の法人税額 の特別控除に関する明細書 | X2: 事 業 年 度 | AA2: =基本情報!D11 -> 2015-10-01 | AH2: 法人名 | AK2: =基本情報!C7 -> 株式会社今野デザイン | AT2: 別表六二十
AA3: =基本情報!C11 -> 2016-09-30
C4: 雇用者給与等 | D4: 支給増加額の計算 | E4: 雇用者給与等支給額 | P4: 1 | V4: 0 | X4: 円 | Z4: 税 額 控 除 限 度 額 | AK4: 8 | AN4: 0 | AS4: 円
Q5: =T35 -> 9826300 | Y5: 法 人 税 額 の 特 別 控 除 額 の 計 算 | Z5: ="(3)×10/100" -> (3)×10/100 | AL5: =IF(Q5<Q13,0,IF(Q15<=Q17,0,IF(Q11<基本情報!E11,0,ROUNDDOWN(Q9*10/100,0)))) -> 0
E6: 基準雇用者給与等支給額 | P6: 2 | V6: 0 | Z6: ((1)<(5)の場合又は(6)≦(7)の場合は0)
I7: (17) | Q7: =IF(ISERROR(AJ23),0,AJ23) -> 12017550 | Z7: 当期の所得に対する法人税の額 | AK7: 9 | AN7: 0
E8: 雇用者給与等支給増加額 | P8: 3 | Z8: (別表一(一)｢2｣、別表一(二)｢2｣又は別表一(三)｢2｣) | AL8: 300000
E9: (1)－(2) (マイナスの場合は０) | Q9: =IF(Q5-Q7<0,0,Q5-Q7) -> 0
C10: 雇用者給与等支給増加割合 | P10: 4 | Z10: 当期税額基準額 | AK10: 10
C11: (3)/(2) | Q11: =IF(ISERROR(ROUNDDOWN(Q9/Q7,3)),0,ROUNDDOWN(Q9/Q7,3)) -> 0 | AB11: (9)× | AD11: =基本情報!D9&"/100" -> 10/100 | AL11: =ROUNDDOWN(AL8*基本情報!D9/100,0) -> 30000
C12: 比較雇用者給与等支給額 | P12: 5 | Z12: 当期税額控除可能額 | AK12: 11
G13: (21) | Q13: =AJ29 -> 10836600 | Z13: ((8)と(10)のうち少ない金額) | AL13: =MIN(AL5,AL11) -> 0
C14: 平均給与等支給額 | P14: 6 | V14: 0 | Z14: 法人税額超過構成額 | AK14: 12
G15: (27の①) | Q15: =T45 -> 258641 | Z15: （別表六(二十四)｢28の②｣）
C16: 比較平均給与等支給額 | P16: 7 | Z16: 法人税額の特別控除額 | AK16: 13
G17: (27の②) | Q17: =AH45 -> 238467 | Z17: (11)－(12) | AL17: =AL13-AL15 -> 0
N18: 基準雇用者給与等支給額の計算
C19: 基準事業年度又は 基準連結事業年度等 | P19: 国内雇用者に対する 給与等の支給額 | Z19: 適用年度の月数 | AJ19: 基準雇用者給与等支給額
Z20: (14)の基準事業年度又は 基準連結事業年度等の月数 | AJ20: (15)×(16)
E21: 14 | R21: 15 | AB21: 16 | AL21: 17
C22: 平 | E22: =基本情報!C15 -> 2012-10-01 | Y22: 円 | AC22: =基本情報!I11 -> 12 | AI22: 円 | AS22: 円
C23: 平 | E23: =基本情報!C16 -> 2013-09-30 | P23: =IF(E22="-",基本情報!D19,給与入力!AG21) -> 12017550 | AC23: =IF(E22="-",基本情報!G18,基本情報!I16) -> 12 | AJ23: =ROUNDDOWN(P23*AC22/AC23,0) -> 12017550
N24: 比較雇用者給与等支給額の計算
C25: 前事業年度又は前連結事業年度 | P25: 国内雇用者に対する 給与等の支給額 | Z25: 適用年度の月数 | AJ25: 比較雇用者給与等支給額
Z26: (18)の前事業年度又は 前連結事業年度の月数 | AJ26: (19)×(20)
E27: 18 | R27: 19 | AB27: 20 | AL27: 21
C28: 平 | E28: =基本情報!G11 -> 2014-10-01 | AC28: =基本情報!I11 -> 12
C29: 平 | E29: =基本情報!H11 -> 2015-09-30 | P29: =給与入力!AG49 -> 10836600 | AC29: =基本情報!J11 -> 12 | AJ29: =ROUNDDOWN(P29*AC28/AC29,0) -> 10836600
N30: 平均給与等支給額及び比較平均給与等支給額の計算
Q31: 平均給与等支給額の計算 | AF31: 比較平均給与等支給額の計算
Q32: 適 用 年 度 | AF32: 前事業年度又は前連結事業年度
W33: ① | AK33: ②
C34: 雇用者給与等支給額 | Q34: 22 | R34: (1) | AE34: 円 | AF34: (19) | AS34: 円
T35: =給与入力!AG78 -> 9826300 | AH35: =給与入力!AG49 -> 10836600
C36: 同上のうち一般被保険者である 継続雇用者に係る金額 | Q36: 23
T37: =給与入力!AG79 -> 6207400 | AH37: =給与入力!AG50 -> 6677100
C38: 同上のうち継続雇用制度 対象者に係る金額 | Q38: 24
T39: =給与入力!AG80 -> 0 | AH39: =給与入力!AG51 -> 0
C40: 継続雇用者給与等支給額 | Q40: 25
E41: (23)－(24) | T41: =T37-T39 -> 6207400 | AH41: =AH37-AH39 -> 6677100
C42: 月別支給対象者の合計数 | Q42: 26 | AE42: 人 | AS42: 人
T43: =給与入力!AH78 -> 24 | AH43: =給与入力!AH49 -> 28
C44: 平均給与等支給額及び比較平均給与等支給額 | Q44: 27 | AE44: 円 | AS44: 円
E45: (25)/(26) | T45: =ROUNDDOWN(T41/T43,0) -> 258641 | AH45: =IF(ISERROR(ROUNDDOWN(AH41/AH43,0)),0,ROUNDDOWN(AH41/AH43,0)) -> 238467
H46: 各経過年度における計算 | AL46: 経過年度 | AN46: 平
AN47: 平
C48: 経過雇用者給与等 | D48: 支給増加額の計算 | E48: 雇用者給与等支給額 | R48: 外 | X48: 円 | Z48: 平均給与等支給額及び比較平均給与等支給額の計算
Q49: 28 | AH49: 平均給与等支給額の計算 | AN49: 比較平均給与等支給額の計算
E51: 基準雇用者給与等支給額 | R51: 外 | AH51: 経 過 年 度 | AN51: 前事業年度又は 前連結事業年度
Q52: 29
I53: (33) | AH53: ① | AN53: ②
E54: 経過雇用者給与等支給増加額 | R54: 外 | Y54: 雇用者給与等支給額 | AG54: 38 | AM54: 円 | AS54: 円
E55: (28)-(29) (マイナスの場合は0) ((28)<(37)の場合又は(43の ①)≦(43の②)の場合は０) | Q55: 30
Y56: 同上のうち一般被保険者である継続雇用者に係る金額 | AG56: 39
C57: 雇用者給与等支給増加割合
H58: (30) | Q58: 31 | Y58: 同上のうち継続雇用制度対象者に係る金額 | AG58: 40
H59: (29)
C60: 基準雇用者給与 | D60: 等支給額の計算 | F60: 当該経過年度の月数 | Y60: 継続雇用者給与等支給額 | AG60: 41
E61: (14)の基準事業年度又は基準連結事業年度等の月数 | Q61: 32 | AA61: (39)－(40)
Y62: 月別支給対象者の合計数 | AG62: 42 | AM62: 人 | AS62: 人
E63: 基準雇用者給与等支給額 | X63: 円
Q64: 33 | Y64: 平均給与等支給額及び比較平均給与等支給額 | AG64: 43 | AM64: 円 | AS64: 円
H65: (15)×(32) | AA65: (41)/(42)
D66: 比較雇用者給与等支給額の計算 | AA66: 各経過年度の合計額等の計算
C67: 前事業年度又は前連結事業年度 | Q67: 34 | R67: 平 | Y67: 控除上限割合の計算 | Z67: 適用年度の月数 | AL67: 44
R68: 平
C69: 国内雇用者に対する給与等の支給額 | Q69: 35 | X69: 円 | Z69: 各経過年度の月数の合計数 | AL69: 45
D71: 当該経過年度の月数 | Q71: 36 | Z71: 控除上限割合 | AL71: 46
C72: (34)の前事業年度又は前連結事業年度の月数 | Z72: =基本情報!$D$9&"/100×(44)+(45)/(44)" -> 10/100×(44)+(45)/(44)
C73: 比較雇用者給与等支給額 | Q73: 37 | X73: 円 | Y73: 各経過年度における経過雇用者 給与等支給増加額の合計額 (各経過年度における(30)の合計) | AL73: 47 | AS73: 円
G74: (35)×(36)
C75: 小林敬幸税理士事務所 | AS75: 法 0301-0620

Sheet 別表６（２１）
B2: 雇用者給与等支給額が増加した場合の法人税額 の特別控除に関する明細書 | L2: 事 業 | O2: ='別表６（２０）'!$AA$2 -> 2015-10-01 | T2: 法人名 | V2: ='別表６（２０）'!AK2 -> 株式会社今野デザイン | AA2: 別表六
L3: 年 度 | O3: ='別表６（２０）'!AA3 -> 2016-09-30
B4: 雇用者給与等 | C4: 支給増加額の計算 | D4: 雇用者給与等支給額 | I4: 1 | J4: ='別表６（２０）'!Q5 -> 9826300 | L4: 円 | O4: 税額控除限度額 | W4: 8 | X4: ='別表６（２０）'!AL5 -> 0 | Z4: 円 | AB4: （二十一）
M5: 法人税額の特別控除額の計算 | Q5: (3) | R5: × | S5: 10
S6: 100
O7: ((1)＜(5)の場合又は(6)≦(7)の場合は０)
D8: 基準雇用者給与等支給額 | I8: 2 | J8: ='別表６（２０）'!Q7 -> 12017550
O9: 調整前法人税額 | W9: 9 | X9: 300000
D10: (17)
O11: (別表一(一)｢2｣､別表一(二)｢2｣又は別 表一(三)｢2｣)
D12: 雇用者給与等支給増加額 | I12: 3 | J12: ='別表６（２０）'!Q9 -> 0
D13: (1)－(2) | O13: 当期税額基準額 | W13: 10 | X13: =ROUNDDOWN(X9*基本情報!D9/100,0) -> 30000
D14: (マイナスの場合は０)
Q15: (9) | R15: × | S15: =基本情報!D9 -> 10
B16: 増加促進割合 | I16: 4 | J16: ='別表６（２０）'!Q11 -> 0
S17: 100
F18: (3)
O19: 当期税額控除可能額 | W19: 11 | X19: =MIN(X4,X13) -> 0
F20: (2)
B21: 比較雇用者給与等支給額 | I21: 5 | J21: ='別表６（２０）'!Q13 -> 10836600 | L21: 円
O22: ((8)と(10)のうち少ない金額)
B23: (21)
O24: 法人税額超過構成額 | W24: 12
B25: 平均給与等支給額 | I25: 6 | J25: ='別表６（２０）'!Q15 -> 258641
O26: （別表六(二十五)｢31の②｣）
B27: (27の①)
O28: 法人税額の特別控除額 | W28: 13 | X28: =X19-X24 -> 0
B29: 比較平均給与等支給額 | I29: 7 | J29: ='別表６（２０）'!Q17 -> 238467
O30: (11)－(12)
B31: (27の②)
B32: 基 準 雇 用 者 給 与 等 支 給 額 の 計 算
B33: 基準事業年度又は基準連結事業年度等 | I33: 国内雇用者に対する | O33: 適用年度の月数 | V33: 基準雇用者給与等支給額
O34: (14)の基準事業年度又は
I35: 給与等の支給額 | V35: (15)×(16)
O36: 基準連結事業年度等の月数
B37: 14 | I37: 15 | O37: 16 | V37: 17
B38: 平 | D38: ='別表６（２０）'!E22 -> 2012-10-01 | I38: ='別表６（２０）'!P23 -> 12017550 | N38: 円 | Q38: ='別表６（２０）'!AC22 -> 12 | V38: ='別表６（２０）'!AJ23 -> 12017550 | Z38: 円
B39: 平 | D39: ='別表６（２０）'!E23 -> 2013-09-30 | Q39: ='別表６（２０）'!AC23 -> 12
B40: 比 較 雇 用 者 給 与 等 支 給 額 の 計 算
B41: 前事業年度又は前連結事業年度 | I41: 国内雇用者に対する | O41: 適用年度の月数 | V41: 比較雇用者給与等支給額
O42: (18)の前事業年度又は
I43: 給与等の支給額 | V43: (19)×(20)
O44: 前連結事業年度等の月数
B45: 18 | I45: 19 | O45: 20 | V45: 21
B46: 平 | D46: ='別表６（２０）'!E28 -> 2014-10-01 | I46: ='別表６（２０）'!P29 -> 10836600 | N46: 円 | Q46: ='別表６（２０）'!AC28 -> 12 | V46: ='別表６（２０）'!AJ29 -> 10836600 | Z46: 円
B47: 平 | D47: ='別表６（２０）'!E29 -> 2015-09-30 | Q47: ='別表６（２０）'!AC29 -> 12
B48: 平 均 給 与 等 支 給 額 及 び 比 較 平 均 給 与 等 支 給 額 の 計 算
J49: 平均給与等支給額の計算 | S49: 比較平均給与等支給額の計算
J50: 適 用 年 度 | S50: 前事業年度又は前連結事業年度
J51: ① | S51: ②
B52: 雇用者給与等支給額 | I52: 22 | J52: (1) | K52: ='別表６（２０）'!T35 -> 9826300 | R52: 円 | S52: (19) | U52: ='別表６（２０）'!AH35 -> 10836600 | Z52: 円
B54: 同上のうち一般被保険者である継続雇用 者に係る金額 | I54: 23 | K54: ='別表６（２０）'!T37 -> 6207400 | U54: ='別表６（２０）'!AH37 -> 6677100
B56: 同上のうち継続雇用制度対象者に係る金額 | I56: 24 | K56: ='別表６（２０）'!T39 -> 0 | U56: ='別表６（２０）'!AH39 -> 0
B58: 継続雇用者給与等支給額 | I58: 25 | K58: ='別表６（２０）'!T41 -> 6207400 | U58: ='別表６（２０）'!AH41 -> 6677100
B59: (23)－(24)
B60: 月別支給対象者の合計数 | I60: 26 | K60: ='別表６（２０）'!T43 -> 24 | R60: 人 | U60: ='別表６（２０）'!AH43 -> 28 | Z60: 人
B62: 平均給与等支給額及び比較平均給与等支給額 | I62: 27 | K62: ='別表６（２０）'!T45 -> 258641 | R62: 円 | U62: ='別表６（２０）'!AH45 -> 238467 | Z62: 円
F63: (25)
F64: (26)
Z65: 法 0301-0621

Sheet 計算基礎シート (hidden)
F3: 在職中 | G3: =G28 -> 2016-09-30 | H3: なくなった月 | J3: なった月
B4: 前年度 | E4: 適用年度 | F4: =F5&"前退職" -> 2014年10月前退職 | G4: =G5-1 -> 2014-09-30 | H4: 1
A5: 1 | B5: =基本情報!G11 -> 2014-10-01 | C5: =YEAR(B5)&"年"&MONTH(B5)&"月以前" -> 2014年10月以前 | D5: =B5 -> 2014-10-01 | E5: =D5 -> 2014-10-01 | F5: =YEAR(E5)&"年"&MONTH(E5)&"月" -> 2014年10月 | G5: =E5 -> 2014-10-01 | H5: 2 | I5: =C5 -> 2014年10月以前 | J5: 1 | L5: 退職
A6: 2 | B6: =EOMONTH(B5,1) -> 2014-11-30 | C6: =YEAR(B6)&"年"&MONTH(B6)&"月" -> 2014年11月 | D6: =B6 -> 2014-11-30 | E6: =EOMONTH(E5,1) -> 2014-11-30 | F6: =YEAR(E6)&"年"&MONTH(E6)&"月" -> 2014年11月 | G6: =E6 -> 2014-11-30 | H6: 2 | I6: =C6 -> 2014年11月 | J6: 1 | L6: 継続雇用制度に移行
A7: 3 | B7: =EOMONTH(B6,1) -> 2014-12-31 | C7: =YEAR(B7)&"年"&MONTH(B7)&"月" -> 2014年12月 | D7: 2014-12-31 | E7: =EOMONTH(E6,1) -> 2014-12-31 | F7: 2014年12月 | G7: 2014-12-31 | H7: 2 | I7: 2014年12月 | J7: 1
A8: 4 | B8: 2015-01-31 | C8: 2015年1月 | D8: 2015-01-31 | E8: 2015-01-31 | F8: 2015年1月 | G8: 2015-01-31 | H8: 2 | I8: 2015年1月 | J8: 1
A9: 5 | B9: 2015-02-28 | C9: 2015年2月 | D9: 2015-02-28 | E9: 2015-02-28 | F9: 2015年2月 | G9: 2015-02-28 | H9: 2 | I9: 2015年2月 | J9: 1
A10: 6 | B10: 2015-03-31 | C10: 2015年3月 | D10: 2015-03-31 | E10: 2015-03-31 | F10: 2015年3月 | G10: 2015-03-31 | H10: 2 | I10: 2015年3月 | J10: 1
A11: 7 | B11: 2015-04-30 | C11: 2015年4月 | D11: 2015-04-30 | E11: 2015-04-30 | F11: 2015年4月 | G11: 2015-04-30 | H11: 2 | I11: 2015年4月 | J11: 1
A12: 8 | B12: 2015-05-31 | C12: 2015年5月 | D12: 2015-05-31 | E12: 2015-05-31 | F12: 2015年5月 | G12: 2015-05-31 | H12: 2 | I12: 2015年5月 | J12: 1
A13: 9 | B13: 2015-06-30 | C13: 2015年6月 | D13: 2015-06-30 | E13: 2015-06-30 | F13: 2015年6月 | G13: 2015-06-30 | H13: 2 | I13: 2015年6月 | J13: 1
A14: 10 | B14: 2015-07-31 | C14: 2015年7月 | D14: 2015-07-31 | E14: 2015-07-31 | F14: 2015年7月 | G14: 2015-07-31 | H14: 2 | I14: 2015年7月 | J14: 1
A15: 11 | B15: 2015-08-31 | C15: 2015年8月 | D15: 2015-08-31 | E15: 2015-08-31 | F15: 2015年8月 | G15: 2015-08-31 | H15: 2 | I15: 2015年8月 | J15: 1
A16: 12 | B16: 2015-09-30 | C16: 2015年9月 | D16: 2015-09-30 | E16: 2015-09-30 | F16: 2015年9月 | G16: 2015-09-30 | H16: 2 | I16: 2015年9月 | J16: 1
A17: 13 | B17: 2015-10-31 | C17: 2015年10月 | D17: 2015-10-31 | E17: 2015-10-31 | F17: 2015年10月 | G17: 2015-10-31 | H17: 1 | I17: 2015年10月 | J17: 2
A18: 14 | B18: 2015-11-30 | C18: 2015年11月 | D18: 2015-11-30 | E18: 2015-11-30 | F18: 2015年11月 | G18: 2015-11-30 | H18: 1 | I18: 2015年11月 | J18: 2
A19: 15 | B19: 2015-12-31 | C19: 2015年12月 | D19: 2015-12-31 | E19: 2015-12-31 | F19: 2015年12月 | G19: 2015-12-31 | H19: 1 | I19: 2015年12月 | J19: 2
A20: 16 | B20: 2016-01-31 | C20: 2016年1月 | D20: 2016-01-31 | E20: 2016-01-31 | F20: 2016年1月 | G20: 2016-01-31 | H20: 1 | I20: 2016年1月 | J20: 2
A21: 17 | B21: 2016-02-29 | C21: 2016年2月 | D21: 2016-02-29 | E21: 2016-02-29 | F21: 2016年2月 | G21: 2016-02-29 | H21: 1 | I21: 2016年2月 | J21: 2
A22: 18 | B22: 2016-03-31 | C22: 2016年3月 | D22: 2016-03-31 | E22: 2016-03-31 | F22: 2016年3月 | G22: 2016-03-31 | H22: 1 | I22: 2016年3月 | J22: 2
A23: 19 | B23: 2016-04-30 | C23: 2016年4月 | D23: 2016-04-30 | E23: 2016-04-30 | F23: 2016年4月 | G23: 2016-04-30 | H23: 1 | I23: 2016年4月 | J23: 2
A24: 20 | B24: 2016-05-31 | C24: 2016年5月 | D24: 2016-05-31 | E24: 2016-05-31 | F24: 2016年5月 | G24: 2016-05-31 | H24: 1 | I24: 2016年5月 | J24: 2
A25: 21 | B25: 2016-06-30 | C25: 2016年6月 | D25: 2016-06-30 | E25: 2016-06-30 | F25: 2016年6月 | G25: 2016-06-30 | H25: 1 | I25: 2016年6月 | J25: 2
A26: 22 | B26: 2016-07-31 | C26: 2016年7月 | D26: 2016-07-31 | E26: 2016-07-31 | F26: 2016年7月 | G26: 2016-07-31 | H26: 1 | I26: 2016年7月 | J26: 2
A27: 23 | B27: 2016-08-31 | C27: 2016年8月 | D27: 2016-08-31 | E27: 2016-08-31 | F27: 2016年8月 | G27: 2016-08-31 | H27: 1 | I27: 2016年8月 | J27: 2
A28: 24 | B28: 2016-09-30 | C28: 2016年9月 | D28: 2016-09-30 | E28: 2016-09-30 | F28: 2016年9月 | G28: 2016-09-30 | H28: 1 | I28: 2016年9月 | J28: 2
